{"text_format":"3","workbook":"xlsx","n_sheets":3,"sheets":["Toteutussuunnitelman tiedot","Agile-toteutussuunnitelma","Tietoja"],"not_rendered":{"defined_names":5},"read":"whole","date_system":"1900"}

{"sheet":"Toteutussuunnitelman tiedot","index":0,"n_rows":13,"n_cols":7,"rows_kept":13,"merged":[[12,1,12,4]]}
["Luo Agile-toteutussuunnitelma antamalla tärkeät välitavoitteet tai aktiviteetit tämän laskentataulukon Toteutussuunnitelman tiedot -taulukkoon.\nTämän laskentataulukon otsikko on solussa B1. \nLöydät lisätietoja tämän laskentataulukon käytöstä, mukaan lukien ohjeita näytönlukuohjelmia varten, Tietoja-laskentataulukosta.\nSaat muita ohjeita siirtymällä alas sarakkeeseen A.","Agile-aikajanan tiedot"]
["Taulukon otsikot ovat soluissa B2–E2. Voit lajitella taulukon ja etsiä tiettyjä kohteita otsikkosuodattimien avulla.\nAgile-toteutussuunnitelmaa voi selventää lajittelemalla  taulukko nousevassa järjestyksessä prioriteetti mukaan, jonka jälkeen tulee välitavoite tai aktiviteetti.\nEsimerkkitiedot ovat Toteutussuunnitelman tiedot -taulukossa soluissa B3–E12. \nKun välitavoite tai aktiviteetti on valmis, päivitä vastaava tuloskenttä tulosten näyttämiseksi Agile-toteutussuunnitelma -laskentataulukossa. Kirjoita ”Ei muutosta” sellaisten välitavoitteiden korostamiseksi, jotka eivät vaikuta tilanteeseen.\nLöydät seuraavan ohjeen jatkamalla soluun A13.\n","Tavoite","Välitavoite tai aktiviteetti","Prioriteetti","Tulos",null,"< -- lajittele taulukko prioriteetti ja välitavoite tai aktiviteetti mukaan nousevassa järjestyksessä"]
[null,"Nykyinen","Aktiviteetti 1\nLuo prototyyppi","1 – Korkea",null,null,"< -- lisää kunkin valmiin välitavoitteen tulos. Kirjoita ”Ei muutosta” sellaisten välitavoitteiden korostamiseksi, jotka eivät vaikuta tilanteeseen."]
[null,"Lyhyt aikaväli","Aktiviteetti 2\nEsittelyprototyyppi","1 – Korkea"]
[null,"Nykyinen","Aktiviteetti 6","1 – Korkea"]
[null,"Tuleva","Aktiviteetti 7\nVaiheen 1 käyttöönoton ulkoistamiskehitys","1 – Korkea"]
[null,"Valmis","Aktiviteetti 9\nEnsimmäinen vaihe hyväksytty","1 – Korkea","Alentunut 10 %"]
[null,"Tuleva","Aktiviteetti 10","2 – Keskitaso"]
[null,"Lyhyt aikaväli","Aktiviteetti 8","2 – Keskitaso"]
[null,"Valmis","Aktiviteetti 3","3 – Matala","Ei muutosta"]
[null,"Tuleva","Aktiviteetti 4","3 – Matala"]
[null,"Nykyinen","Aktiviteetti 5","3 – Matala"]
["Lisää uudet kohteet lisäämällä uusia rivejä tämän viivan yläpuolella olevaan taulukkoon.\nTämä on tämän laskentataulukon viimeinen ohje.","Lisää uudet kohteet lisäämällä uusia rivejä tämän viivan yläpuolelle"]

{"sheet":"Agile-toteutussuunnitelma","index":1,"n_rows":100,"n_cols":8,"rows_kept":100}
["Tämä laskentataulukko sisältää Agile-toteutussuunnitelman, joka näyttää välitavoitteet ja aktiviteetit Toteutussuunnitelman tiedot -laskentataulukosta. \nOtsikko on solussa B1. \nTulokset, joissa on lause ”Ei muutosta”, on korostettu vaaleanoranssilla, rgb (255, 230, 210).\nValmiit välitavoitteet tai aktiviteetit on korostettu vaaleanvihreällä, rgb (237,251,219).","Agile-toteutussuunnitelma"]
["Kaavion otsikot ovat soluissa B2, D2, F2 ja H2. Niissä lukee: Valmis, Nykyinen, Lyhyt aikaväli ja Tuleva. Muokkaa näitä otsikoita, jotta voit muuttaa tavoitteen valinnan arvoja Toteutussuunnitelman tiedot -laskentataulukon Toteutussuunnitelman tiedot -taulukossa.\nSolut B3–H20 sisältävät välitavoitteet ja aktiviteetit tämän rivin otsikoille. \nVälitavoitteet ja aktiviteetit luodaan Toteutussuunnitelman tiedot -laskentataulukossa.\nÄLÄ muokkaa tai poista tämän laskentataulukon syötteitä. Päivitä Toteutussuunnitelman tiedot -laskentataulukon Toteutussuunnitelman tiedot -taulukkoon tämän laskentataulukon päivitetty sisältö.\nTämä on tämän laskentataulukon viimeinen ohje.","Valmis",null,"Nykyinen",null,"Lyhyt aikaväli",null,"Tuleva"]
[null,{"$f":"IFERROR(INDEX(Aktiviteetti,SMALL(IF(Tavoite=$B$2,ROW(Aktiviteetti)-MIN(ROW(Aktiviteetti))+1),ROWS($B$3:B3)))&\" \"&CHAR(10)&(INDEX(Tulos,SMALL(IF(Tavoite=$B$2,ROW(Tulos)-MIN(ROW(Tulos))+1),ROWS($B$3:B3))))&CHAR(10),\"\")","v":"Aktiviteetti 9\nEnsimmäinen vaihe hyväksytty \nAlentunut 10 %\n"},null,{"$f":"IFERROR(INDEX(Aktiviteetti,SMALL(IF(Tavoite=$D$2,ROW(Aktiviteetti)-MIN(ROW(Aktiviteetti))+1),ROWS($B$3:B3)))&CHAR(10),\"\")","v":"Aktiviteetti 1\nLuo prototyyppi\n"},null,{"$f":"IFERROR(INDEX(Aktiviteetti,SMALL(IF(Tavoite=$F$2,ROW(Aktiviteetti)-MIN(ROW(Aktiviteetti))+1),ROWS($B$3:B3)))&CHAR(10),\"\")","v":"Aktiviteetti 2\nEsittelyprototyyppi\n"},null,{"$f":"IFERROR(INDEX(Aktiviteetti,SMALL(IF(Tavoite=$H$2,ROW(Aktiviteetti)-MIN(ROW(Aktiviteetti))+1),ROWS($B$3:B3)))&CHAR(10),\"\")","v":"Aktiviteetti 7\nVaiheen 1 käyttöönoton ulkoistamiskehitys\n"}]
[null,{"$f":"IFERROR(INDEX(Aktiviteetti,SMALL(IF(Tavoite=$B$2,ROW(Aktiviteetti)-MIN(ROW(Aktiviteetti))+1),ROWS($B$3:B4)))&\" \"&CHAR(10)&(INDEX(Tulos,SMALL(IF(Tavoite=$B$2,ROW(Tulos)-MIN(ROW(Tulos))+1),ROWS($B$3:B4))))&CHAR(10),\"\")","v":"Aktiviteetti 3 \nEi muutosta\n"},null,{"$f":"IFERROR(INDEX(Aktiviteetti,SMALL(IF(Tavoite=$D$2,ROW(Aktiviteetti)-MIN(ROW(Aktiviteetti))+1),ROWS($B$3:B4)))&CHAR(10),\"\")","v":"Aktiviteetti 6\n"},null,{"$f":"IFERROR(INDEX(Aktiviteetti,SMALL(IF(Tavoite=$F$2,ROW(Aktiviteetti)-MIN(ROW(Aktiviteetti))+1),ROWS($B$3:B4)))&CHAR(10),\"\")","v":"Aktiviteetti 8\n"},null,{"$f":"IFERROR(INDEX(Aktiviteetti,SMALL(IF(Tavoite=$H$2,ROW(Aktiviteetti)-MIN(ROW(Aktiviteetti))+1),ROWS($B$3:B4)))&CHAR(10),\"\")","v":"Aktiviteetti 10\n"}]
[null,{"$f":"IFERROR(INDEX(Aktiviteetti,SMALL(IF(Tavoite=$B$2,ROW(Aktiviteetti)-MIN(ROW(Aktiviteetti))+1),ROWS($B$3:B5)))&\" \"&CHAR(10)&(INDEX(Tulos,SMALL(IF(Tavoite=$B$2,ROW(Tulos)-MIN(ROW(Tulos))+1),ROWS($B$3:B5))))&CHAR(10),\"\")","v":""},null,{"$f":"IFERROR(INDEX(Aktiviteetti,SMALL(IF(Tavoite=$D$2,ROW(Aktiviteetti)-MIN(ROW(Aktiviteetti))+1),ROWS($B$3:B5)))&CHAR(10),\"\")","v":"Aktiviteetti 5\n"},null,{"$f":"IFERROR(INDEX(Aktiviteetti,SMALL(IF(Tavoite=$F$2,ROW(Aktiviteetti)-MIN(ROW(Aktiviteetti))+1),ROWS($B$3:B5)))&CHAR(10),\"\")","v":""},null,{"$f":"IFERROR(INDEX(Aktiviteetti,SMALL(IF(Tavoite=$H$2,ROW(Aktiviteetti)-MIN(ROW(Aktiviteetti))+1),ROWS($B$3:B5)))&CHAR(10),\"\")","v":"Aktiviteetti 4\n"}]
[null,{"$f":"IFERROR(INDEX(Aktiviteetti,SMALL(IF(Tavoite=$B$2,ROW(Aktiviteetti)-MIN(ROW(Aktiviteetti))+1),ROWS($B$3:B6)))&\" \"&CHAR(10)&(INDEX(Tulos,SMALL(IF(Tavoite=$B$2,ROW(Tulos)-MIN(ROW(Tulos))+1),ROWS($B$3:B6))))&CHAR(10),\"\")","v":""},null,{"$f":"IFERROR(INDEX(Aktiviteetti,SMALL(IF(Tavoite=$D$2,ROW(Aktiviteetti)-MIN(ROW(Aktiviteetti))+1),ROWS($B$3:B6)))&CHAR(10),\"\")","v":""},null,{"$f":"IFERROR(INDEX(Aktiviteetti,SMALL(IF(Tavoite=$F$2,ROW(Aktiviteetti)-MIN(ROW(Aktiviteetti))+1),ROWS($B$3:B6)))&CHAR(10),\"\")","v":""},null,{"$f":"IFERROR(INDEX(Aktiviteetti,SMALL(IF(Tavoite=$H$2,ROW(Aktiviteetti)-MIN(ROW(Aktiviteetti))+1),ROWS($B$3:B6)))&CHAR(10),\"\")","v":""}]
[null,{"$f":"IFERROR(INDEX(Aktiviteetti,SMALL(IF(Tavoite=$B$2,ROW(Aktiviteetti)-MIN(ROW(Aktiviteetti))+1),ROWS($B$3:B7)))&\" \"&CHAR(10)&(INDEX(Tulos,SMALL(IF(Tavoite=$B$2,ROW(Tulos)-MIN(ROW(Tulos))+1),ROWS($B$3:B7))))&CHAR(10),\"\")","v":""},null,{"$f":"IFERROR(INDEX(Aktiviteetti,SMALL(IF(Tavoite=$D$2,ROW(Aktiviteetti)-MIN(ROW(Aktiviteetti))+1),ROWS($B$3:B7)))&CHAR(10),\"\")","v":""},null,{"$f":"IFERROR(INDEX(Aktiviteetti,SMALL(IF(Tavoite=$F$2,ROW(Aktiviteetti)-MIN(ROW(Aktiviteetti))+1),ROWS($B$3:B7)))&CHAR(10),\"\")","v":""},null,{"$f":"IFERROR(INDEX(Aktiviteetti,SMALL(IF(Tavoite=$H$2,ROW(Aktiviteetti)-MIN(ROW(Aktiviteetti))+1),ROWS($B$3:B7)))&CHAR(10),\"\")","v":""}]
[null,{"$f":"IFERROR(INDEX(Aktiviteetti,SMALL(IF(Tavoite=$B$2,ROW(Aktiviteetti)-MIN(ROW(Aktiviteetti))+1),ROWS($B$3:B8)))&\" \"&CHAR(10)&(INDEX(Tulos,SMALL(IF(Tavoite=$B$2,ROW(Tulos)-MIN(ROW(Tulos))+1),ROWS($B$3:B8))))&CHAR(10),\"\")","v":""},null,{"$f":"IFERROR(INDEX(Aktiviteetti,SMALL(IF(Tavoite=$D$2,ROW(Aktiviteetti)-MIN(ROW(Aktiviteetti))+1),ROWS($B$3:B8)))&CHAR(10),\"\")","v":""},null,{"$f":"IFERROR(INDEX(Aktiviteetti,SMALL(IF(Tavoite=$F$2,ROW(Aktiviteetti)-MIN(ROW(Aktiviteetti))+1),ROWS($B$3:B8)))&CHAR(10),\"\")","v":""},null,{"$f":"IFERROR(INDEX(Aktiviteetti,SMALL(IF(Tavoite=$H$2,ROW(Aktiviteetti)-MIN(ROW(Aktiviteetti))+1),ROWS($B$3:B8)))&CHAR(10),\"\")","v":""}]
[null,{"$f":"IFERROR(INDEX(Aktiviteetti,SMALL(IF(Tavoite=$B$2,ROW(Aktiviteetti)-MIN(ROW(Aktiviteetti))+1),ROWS($B$3:B9)))&\" \"&CHAR(10)&(INDEX(Tulos,SMALL(IF(Tavoite=$B$2,ROW(Tulos)-MIN(ROW(Tulos))+1),ROWS($B$3:B9))))&CHAR(10),\"\")","v":""},null,{"$f":"IFERROR(INDEX(Aktiviteetti,SMALL(IF(Tavoite=$D$2,ROW(Aktiviteetti)-MIN(ROW(Aktiviteetti))+1),ROWS($B$3:B9)))&CHAR(10),\"\")","v":""},null,{"$f":"IFERROR(INDEX(Aktiviteetti,SMALL(IF(Tavoite=$F$2,ROW(Aktiviteetti)-MIN(ROW(Aktiviteetti))+1),ROWS($B$3:B9)))&CHAR(10),\"\")","v":""},null,{"$f":"IFERROR(INDEX(Aktiviteetti,SMALL(IF(Tavoite=$H$2,ROW(Aktiviteetti)-MIN(ROW(Aktiviteetti))+1),ROWS($B$3:B9)))&CHAR(10),\"\")","v":""}]
[null,{"$f":"IFERROR(INDEX(Aktiviteetti,SMALL(IF(Tavoite=$B$2,ROW(Aktiviteetti)-MIN(ROW(Aktiviteetti))+1),ROWS($B$3:B10)))&\" \"&CHAR(10)&(INDEX(Tulos,SMALL(IF(Tavoite=$B$2,ROW(Tulos)-MIN(ROW(Tulos))+1),ROWS($B$3:B10))))&CHAR(10),\"\")","v":""},null,{"$f":"IFERROR(INDEX(Aktiviteetti,SMALL(IF(Tavoite=$D$2,ROW(Aktiviteetti)-MIN(ROW(Aktiviteetti))+1),ROWS($B$3:B10)))&CHAR(10),\"\")","v":""},null,{"$f":"IFERROR(INDEX(Aktiviteetti,SMALL(IF(Tavoite=$F$2,ROW(Aktiviteetti)-MIN(ROW(Aktiviteetti))+1),ROWS($B$3:B10)))&CHAR(10),\"\")","v":""},null,{"$f":"IFERROR(INDEX(Aktiviteetti,SMALL(IF(Tavoite=$H$2,ROW(Aktiviteetti)-MIN(ROW(Aktiviteetti))+1),ROWS($B$3:B10)))&CHAR(10),\"\")","v":""}]
[null,{"$f":"IFERROR(INDEX(Aktiviteetti,SMALL(IF(Tavoite=$B$2,ROW(Aktiviteetti)-MIN(ROW(Aktiviteetti))+1),ROWS($B$3:B11)))&\" \"&CHAR(10)&(INDEX(Tulos,SMALL(IF(Tavoite=$B$2,ROW(Tulos)-MIN(ROW(Tulos))+1),ROWS($B$3:B11))))&CHAR(10),\"\")","v":""},null,{"$f":"IFERROR(INDEX(Aktiviteetti,SMALL(IF(Tavoite=$D$2,ROW(Aktiviteetti)-MIN(ROW(Aktiviteetti))+1),ROWS($B$3:B11)))&CHAR(10),\"\")","v":""},null,{"$f":"IFERROR(INDEX(Aktiviteetti,SMALL(IF(Tavoite=$F$2,ROW(Aktiviteetti)-MIN(ROW(Aktiviteetti))+1),ROWS($B$3:B11)))&CHAR(10),\"\")","v":""},null,{"$f":"IFERROR(INDEX(Aktiviteetti,SMALL(IF(Tavoite=$H$2,ROW(Aktiviteetti)-MIN(ROW(Aktiviteetti))+1),ROWS($B$3:B11)))&CHAR(10),\"\")","v":""}]
[null,{"$f":"IFERROR(INDEX(Aktiviteetti,SMALL(IF(Tavoite=$B$2,ROW(Aktiviteetti)-MIN(ROW(Aktiviteetti))+1),ROWS($B$3:B12)))&\" \"&CHAR(10)&(INDEX(Tulos,SMALL(IF(Tavoite=$B$2,ROW(Tulos)-MIN(ROW(Tulos))+1),ROWS($B$3:B12))))&CHAR(10),\"\")","v":""},null,{"$f":"IFERROR(INDEX(Aktiviteetti,SMALL(IF(Tavoite=$D$2,ROW(Aktiviteetti)-MIN(ROW(Aktiviteetti))+1),ROWS($B$3:B12)))&CHAR(10),\"\")","v":""},null,{"$f":"IFERROR(INDEX(Aktiviteetti,SMALL(IF(Tavoite=$F$2,ROW(Aktiviteetti)-MIN(ROW(Aktiviteetti))+1),ROWS($B$3:B12)))&CHAR(10),\"\")","v":""},null,{"$f":"IFERROR(INDEX(Aktiviteetti,SMALL(IF(Tavoite=$H$2,ROW(Aktiviteetti)-MIN(ROW(Aktiviteetti))+1),ROWS($B$3:B12)))&CHAR(10),\"\")","v":""}]
[null,{"$f":"IFERROR(INDEX(Aktiviteetti,SMALL(IF(Tavoite=$B$2,ROW(Aktiviteetti)-MIN(ROW(Aktiviteetti))+1),ROWS($B$3:B13)))&\" \"&CHAR(10)&(INDEX(Tulos,SMALL(IF(Tavoite=$B$2,ROW(Tulos)-MIN(ROW(Tulos))+1),ROWS($B$3:B13))))&CHAR(10),\"\")","v":""},null,{"$f":"IFERROR(INDEX(Aktiviteetti,SMALL(IF(Tavoite=$D$2,ROW(Aktiviteetti)-MIN(ROW(Aktiviteetti))+1),ROWS($B$3:B13)))&CHAR(10),\"\")","v":""},null,{"$f":"IFERROR(INDEX(Aktiviteetti,SMALL(IF(Tavoite=$F$2,ROW(Aktiviteetti)-MIN(ROW(Aktiviteetti))+1),ROWS($B$3:B13)))&CHAR(10),\"\")","v":""},null,{"$f":"IFERROR(INDEX(Aktiviteetti,SMALL(IF(Tavoite=$H$2,ROW(Aktiviteetti)-MIN(ROW(Aktiviteetti))+1),ROWS($B$3:B13)))&CHAR(10),\"\")","v":""}]
[null,{"$f":"IFERROR(INDEX(Aktiviteetti,SMALL(IF(Tavoite=$B$2,ROW(Aktiviteetti)-MIN(ROW(Aktiviteetti))+1),ROWS($B$3:B14)))&\" \"&CHAR(10)&(INDEX(Tulos,SMALL(IF(Tavoite=$B$2,ROW(Tulos)-MIN(ROW(Tulos))+1),ROWS($B$3:B14))))&CHAR(10),\"\")","v":""},null,{"$f":"IFERROR(INDEX(Aktiviteetti,SMALL(IF(Tavoite=$D$2,ROW(Aktiviteetti)-MIN(ROW(Aktiviteetti))+1),ROWS($B$3:B14)))&CHAR(10),\"\")","v":""},null,{"$f":"IFERROR(INDEX(Aktiviteetti,SMALL(IF(Tavoite=$F$2,ROW(Aktiviteetti)-MIN(ROW(Aktiviteetti))+1),ROWS($B$3:B14)))&CHAR(10),\"\")","v":""},null,{"$f":"IFERROR(INDEX(Aktiviteetti,SMALL(IF(Tavoite=$H$2,ROW(Aktiviteetti)-MIN(ROW(Aktiviteetti))+1),ROWS($B$3:B14)))&CHAR(10),\"\")","v":""}]
[null,{"$f":"IFERROR(INDEX(Aktiviteetti,SMALL(IF(Tavoite=$B$2,ROW(Aktiviteetti)-MIN(ROW(Aktiviteetti))+1),ROWS($B$3:B15)))&\" \"&CHAR(10)&(INDEX(Tulos,SMALL(IF(Tavoite=$B$2,ROW(Tulos)-MIN(ROW(Tulos))+1),ROWS($B$3:B15))))&CHAR(10),\"\")","v":""},null,{"$f":"IFERROR(INDEX(Aktiviteetti,SMALL(IF(Tavoite=$D$2,ROW(Aktiviteetti)-MIN(ROW(Aktiviteetti))+1),ROWS($B$3:B15)))&CHAR(10),\"\")","v":""},null,{"$f":"IFERROR(INDEX(Aktiviteetti,SMALL(IF(Tavoite=$F$2,ROW(Aktiviteetti)-MIN(ROW(Aktiviteetti))+1),ROWS($B$3:B15)))&CHAR(10),\"\")","v":""},null,{"$f":"IFERROR(INDEX(Aktiviteetti,SMALL(IF(Tavoite=$H$2,ROW(Aktiviteetti)-MIN(ROW(Aktiviteetti))+1),ROWS($B$3:B15)))&CHAR(10),\"\")","v":""}]
[null,{"$f":"IFERROR(INDEX(Aktiviteetti,SMALL(IF(Tavoite=$B$2,ROW(Aktiviteetti)-MIN(ROW(Aktiviteetti))+1),ROWS($B$3:B16)))&\" \"&CHAR(10)&(INDEX(Tulos,SMALL(IF(Tavoite=$B$2,ROW(Tulos)-MIN(ROW(Tulos))+1),ROWS($B$3:B16))))&CHAR(10),\"\")","v":""},null,{"$f":"IFERROR(INDEX(Aktiviteetti,SMALL(IF(Tavoite=$D$2,ROW(Aktiviteetti)-MIN(ROW(Aktiviteetti))+1),ROWS($B$3:B16)))&CHAR(10),\"\")","v":""},null,{"$f":"IFERROR(INDEX(Aktiviteetti,SMALL(IF(Tavoite=$F$2,ROW(Aktiviteetti)-MIN(ROW(Aktiviteetti))+1),ROWS($B$3:B16)))&CHAR(10),\"\")","v":""},null,{"$f":"IFERROR(INDEX(Aktiviteetti,SMALL(IF(Tavoite=$H$2,ROW(Aktiviteetti)-MIN(ROW(Aktiviteetti))+1),ROWS($B$3:B16)))&CHAR(10),\"\")","v":""}]
[null,{"$f":"IFERROR(INDEX(Aktiviteetti,SMALL(IF(Tavoite=$B$2,ROW(Aktiviteetti)-MIN(ROW(Aktiviteetti))+1),ROWS($B$3:B17)))&\" \"&CHAR(10)&(INDEX(Tulos,SMALL(IF(Tavoite=$B$2,ROW(Tulos)-MIN(ROW(Tulos))+1),ROWS($B$3:B17))))&CHAR(10),\"\")","v":""},null,{"$f":"IFERROR(INDEX(Aktiviteetti,SMALL(IF(Tavoite=$D$2,ROW(Aktiviteetti)-MIN(ROW(Aktiviteetti))+1),ROWS($B$3:B17)))&CHAR(10),\"\")","v":""},null,{"$f":"IFERROR(INDEX(Aktiviteetti,SMALL(IF(Tavoite=$F$2,ROW(Aktiviteetti)-MIN(ROW(Aktiviteetti))+1),ROWS($B$3:B17)))&CHAR(10),\"\")","v":""},null,{"$f":"IFERROR(INDEX(Aktiviteetti,SMALL(IF(Tavoite=$H$2,ROW(Aktiviteetti)-MIN(ROW(Aktiviteetti))+1),ROWS($B$3:B17)))&CHAR(10),\"\")","v":""}]
[null,{"$f":"IFERROR(INDEX(Aktiviteetti,SMALL(IF(Tavoite=$B$2,ROW(Aktiviteetti)-MIN(ROW(Aktiviteetti))+1),ROWS($B$3:B18)))&\" \"&CHAR(10)&(INDEX(Tulos,SMALL(IF(Tavoite=$B$2,ROW(Tulos)-MIN(ROW(Tulos))+1),ROWS($B$3:B18))))&CHAR(10),\"\")","v":""},null,{"$f":"IFERROR(INDEX(Aktiviteetti,SMALL(IF(Tavoite=$D$2,ROW(Aktiviteetti)-MIN(ROW(Aktiviteetti))+1),ROWS($B$3:B18)))&CHAR(10),\"\")","v":""},null,{"$f":"IFERROR(INDEX(Aktiviteetti,SMALL(IF(Tavoite=$F$2,ROW(Aktiviteetti)-MIN(ROW(Aktiviteetti))+1),ROWS($B$3:B18)))&CHAR(10),\"\")","v":""},null,{"$f":"IFERROR(INDEX(Aktiviteetti,SMALL(IF(Tavoite=$H$2,ROW(Aktiviteetti)-MIN(ROW(Aktiviteetti))+1),ROWS($B$3:B18)))&CHAR(10),\"\")","v":""}]
[null,{"$f":"IFERROR(INDEX(Aktiviteetti,SMALL(IF(Tavoite=$B$2,ROW(Aktiviteetti)-MIN(ROW(Aktiviteetti))+1),ROWS($B$3:B19)))&\" \"&CHAR(10)&(INDEX(Tulos,SMALL(IF(Tavoite=$B$2,ROW(Tulos)-MIN(ROW(Tulos))+1),ROWS($B$3:B19))))&CHAR(10),\"\")","v":""},null,{"$f":"IFERROR(INDEX(Aktiviteetti,SMALL(IF(Tavoite=$D$2,ROW(Aktiviteetti)-MIN(ROW(Aktiviteetti))+1),ROWS($B$3:B19)))&CHAR(10),\"\")","v":""},null,{"$f":"IFERROR(INDEX(Aktiviteetti,SMALL(IF(Tavoite=$F$2,ROW(Aktiviteetti)-MIN(ROW(Aktiviteetti))+1),ROWS($B$3:B19)))&CHAR(10),\"\")","v":""},null,{"$f":"IFERROR(INDEX(Aktiviteetti,SMALL(IF(Tavoite=$H$2,ROW(Aktiviteetti)-MIN(ROW(Aktiviteetti))+1),ROWS($B$3:B19)))&CHAR(10),\"\")","v":""}]
[null,{"$f":"IFERROR(INDEX(Aktiviteetti,SMALL(IF(Tavoite=$B$2,ROW(Aktiviteetti)-MIN(ROW(Aktiviteetti))+1),ROWS($B$3:B20)))&\" \"&CHAR(10)&(INDEX(Tulos,SMALL(IF(Tavoite=$B$2,ROW(Tulos)-MIN(ROW(Tulos))+1),ROWS($B$3:B20))))&CHAR(10),\"\")","v":""},null,{"$f":"IFERROR(INDEX(Aktiviteetti,SMALL(IF(Tavoite=$D$2,ROW(Aktiviteetti)-MIN(ROW(Aktiviteetti))+1),ROWS($B$3:B20)))&CHAR(10),\"\")","v":""},null,{"$f":"IFERROR(INDEX(Aktiviteetti,SMALL(IF(Tavoite=$F$2,ROW(Aktiviteetti)-MIN(ROW(Aktiviteetti))+1),ROWS($B$3:B20)))&CHAR(10),\"\")","v":""},null,{"$f":"IFERROR(INDEX(Aktiviteetti,SMALL(IF(Tavoite=$H$2,ROW(Aktiviteetti)-MIN(ROW(Aktiviteetti))+1),ROWS($B$3:B20)))&CHAR(10),\"\")","v":""}]
[null,{"$f":"IFERROR(INDEX(Aktiviteetti,SMALL(IF(Tavoite=$B$2,ROW(Aktiviteetti)-MIN(ROW(Aktiviteetti))+1),ROWS($B$3:B21)))&\" \"&CHAR(10)&(INDEX(Tulos,SMALL(IF(Tavoite=$B$2,ROW(Tulos)-MIN(ROW(Tulos))+1),ROWS($B$3:B21))))&CHAR(10),\"\")","v":""},null,{"$f":"IFERROR(INDEX(Aktiviteetti,SMALL(IF(Tavoite=$D$2,ROW(Aktiviteetti)-MIN(ROW(Aktiviteetti))+1),ROWS($B$3:B21)))&CHAR(10),\"\")","v":""},null,{"$f":"IFERROR(INDEX(Aktiviteetti,SMALL(IF(Tavoite=$F$2,ROW(Aktiviteetti)-MIN(ROW(Aktiviteetti))+1),ROWS($B$3:B21)))&CHAR(10),\"\")","v":""},null,{"$f":"IFERROR(INDEX(Aktiviteetti,SMALL(IF(Tavoite=$H$2,ROW(Aktiviteetti)-MIN(ROW(Aktiviteetti))+1),ROWS($B$3:B21)))&CHAR(10),\"\")","v":""}]
[null,{"$f":"IFERROR(INDEX(Aktiviteetti,SMALL(IF(Tavoite=$B$2,ROW(Aktiviteetti)-MIN(ROW(Aktiviteetti))+1),ROWS($B$3:B22)))&\" \"&CHAR(10)&(INDEX(Tulos,SMALL(IF(Tavoite=$B$2,ROW(Tulos)-MIN(ROW(Tulos))+1),ROWS($B$3:B22))))&CHAR(10),\"\")","v":""},null,{"$f":"IFERROR(INDEX(Aktiviteetti,SMALL(IF(Tavoite=$D$2,ROW(Aktiviteetti)-MIN(ROW(Aktiviteetti))+1),ROWS($B$3:B22)))&CHAR(10),\"\")","v":""},null,{"$f":"IFERROR(INDEX(Aktiviteetti,SMALL(IF(Tavoite=$F$2,ROW(Aktiviteetti)-MIN(ROW(Aktiviteetti))+1),ROWS($B$3:B22)))&CHAR(10),\"\")","v":""},null,{"$f":"IFERROR(INDEX(Aktiviteetti,SMALL(IF(Tavoite=$H$2,ROW(Aktiviteetti)-MIN(ROW(Aktiviteetti))+1),ROWS($B$3:B22)))&CHAR(10),\"\")","v":""}]
[null,{"$f":"IFERROR(INDEX(Aktiviteetti,SMALL(IF(Tavoite=$B$2,ROW(Aktiviteetti)-MIN(ROW(Aktiviteetti))+1),ROWS($B$3:B23)))&\" \"&CHAR(10)&(INDEX(Tulos,SMALL(IF(Tavoite=$B$2,ROW(Tulos)-MIN(ROW(Tulos))+1),ROWS($B$3:B23))))&CHAR(10),\"\")","v":""},null,{"$f":"IFERROR(INDEX(Aktiviteetti,SMALL(IF(Tavoite=$D$2,ROW(Aktiviteetti)-MIN(ROW(Aktiviteetti))+1),ROWS($B$3:B23)))&CHAR(10),\"\")","v":""},null,{"$f":"IFERROR(INDEX(Aktiviteetti,SMALL(IF(Tavoite=$F$2,ROW(Aktiviteetti)-MIN(ROW(Aktiviteetti))+1),ROWS($B$3:B23)))&CHAR(10),\"\")","v":""},null,{"$f":"IFERROR(INDEX(Aktiviteetti,SMALL(IF(Tavoite=$H$2,ROW(Aktiviteetti)-MIN(ROW(Aktiviteetti))+1),ROWS($B$3:B23)))&CHAR(10),\"\")","v":""}]
[null,{"$f":"IFERROR(INDEX(Aktiviteetti,SMALL(IF(Tavoite=$B$2,ROW(Aktiviteetti)-MIN(ROW(Aktiviteetti))+1),ROWS($B$3:B24)))&\" \"&CHAR(10)&(INDEX(Tulos,SMALL(IF(Tavoite=$B$2,ROW(Tulos)-MIN(ROW(Tulos))+1),ROWS($B$3:B24))))&CHAR(10),\"\")","v":""},null,{"$f":"IFERROR(INDEX(Aktiviteetti,SMALL(IF(Tavoite=$D$2,ROW(Aktiviteetti)-MIN(ROW(Aktiviteetti))+1),ROWS($B$3:B24)))&CHAR(10),\"\")","v":""},null,{"$f":"IFERROR(INDEX(Aktiviteetti,SMALL(IF(Tavoite=$F$2,ROW(Aktiviteetti)-MIN(ROW(Aktiviteetti))+1),ROWS($B$3:B24)))&CHAR(10),\"\")","v":""},null,{"$f":"IFERROR(INDEX(Aktiviteetti,SMALL(IF(Tavoite=$H$2,ROW(Aktiviteetti)-MIN(ROW(Aktiviteetti))+1),ROWS($B$3:B24)))&CHAR(10),\"\")","v":""}]
[null,{"$f":"IFERROR(INDEX(Aktiviteetti,SMALL(IF(Tavoite=$B$2,ROW(Aktiviteetti)-MIN(ROW(Aktiviteetti))+1),ROWS($B$3:B25)))&\" \"&CHAR(10)&(INDEX(Tulos,SMALL(IF(Tavoite=$B$2,ROW(Tulos)-MIN(ROW(Tulos))+1),ROWS($B$3:B25))))&CHAR(10),\"\")","v":""},null,{"$f":"IFERROR(INDEX(Aktiviteetti,SMALL(IF(Tavoite=$D$2,ROW(Aktiviteetti)-MIN(ROW(Aktiviteetti))+1),ROWS($B$3:B25)))&CHAR(10),\"\")","v":""},null,{"$f":"IFERROR(INDEX(Aktiviteetti,SMALL(IF(Tavoite=$F$2,ROW(Aktiviteetti)-MIN(ROW(Aktiviteetti))+1),ROWS($B$3:B25)))&CHAR(10),\"\")","v":""},null,{"$f":"IFERROR(INDEX(Aktiviteetti,SMALL(IF(Tavoite=$H$2,ROW(Aktiviteetti)-MIN(ROW(Aktiviteetti))+1),ROWS($B$3:B25)))&CHAR(10),\"\")","v":""}]
[null,{"$f":"IFERROR(INDEX(Aktiviteetti,SMALL(IF(Tavoite=$B$2,ROW(Aktiviteetti)-MIN(ROW(Aktiviteetti))+1),ROWS($B$3:B26)))&\" \"&CHAR(10)&(INDEX(Tulos,SMALL(IF(Tavoite=$B$2,ROW(Tulos)-MIN(ROW(Tulos))+1),ROWS($B$3:B26))))&CHAR(10),\"\")","v":""},null,{"$f":"IFERROR(INDEX(Aktiviteetti,SMALL(IF(Tavoite=$D$2,ROW(Aktiviteetti)-MIN(ROW(Aktiviteetti))+1),ROWS($B$3:B26)))&CHAR(10),\"\")","v":""},null,{"$f":"IFERROR(INDEX(Aktiviteetti,SMALL(IF(Tavoite=$F$2,ROW(Aktiviteetti)-MIN(ROW(Aktiviteetti))+1),ROWS($B$3:B26)))&CHAR(10),\"\")","v":""},null,{"$f":"IFERROR(INDEX(Aktiviteetti,SMALL(IF(Tavoite=$H$2,ROW(Aktiviteetti)-MIN(ROW(Aktiviteetti))+1),ROWS($B$3:B26)))&CHAR(10),\"\")","v":""}]
[null,{"$f":"IFERROR(INDEX(Aktiviteetti,SMALL(IF(Tavoite=$B$2,ROW(Aktiviteetti)-MIN(ROW(Aktiviteetti))+1),ROWS($B$3:B27)))&\" \"&CHAR(10)&(INDEX(Tulos,SMALL(IF(Tavoite=$B$2,ROW(Tulos)-MIN(ROW(Tulos))+1),ROWS($B$3:B27))))&CHAR(10),\"\")","v":""},null,{"$f":"IFERROR(INDEX(Aktiviteetti,SMALL(IF(Tavoite=$D$2,ROW(Aktiviteetti)-MIN(ROW(Aktiviteetti))+1),ROWS($B$3:B27)))&CHAR(10),\"\")","v":""},null,{"$f":"IFERROR(INDEX(Aktiviteetti,SMALL(IF(Tavoite=$F$2,ROW(Aktiviteetti)-MIN(ROW(Aktiviteetti))+1),ROWS($B$3:B27)))&CHAR(10),\"\")","v":""},null,{"$f":"IFERROR(INDEX(Aktiviteetti,SMALL(IF(Tavoite=$H$2,ROW(Aktiviteetti)-MIN(ROW(Aktiviteetti))+1),ROWS($B$3:B27)))&CHAR(10),\"\")","v":""}]
[null,{"$f":"IFERROR(INDEX(Aktiviteetti,SMALL(IF(Tavoite=$B$2,ROW(Aktiviteetti)-MIN(ROW(Aktiviteetti))+1),ROWS($B$3:B28)))&\" \"&CHAR(10)&(INDEX(Tulos,SMALL(IF(Tavoite=$B$2,ROW(Tulos)-MIN(ROW(Tulos))+1),ROWS($B$3:B28))))&CHAR(10),\"\")","v":""},null,{"$f":"IFERROR(INDEX(Aktiviteetti,SMALL(IF(Tavoite=$D$2,ROW(Aktiviteetti)-MIN(ROW(Aktiviteetti))+1),ROWS($B$3:B28)))&CHAR(10),\"\")","v":""},null,{"$f":"IFERROR(INDEX(Aktiviteetti,SMALL(IF(Tavoite=$F$2,ROW(Aktiviteetti)-MIN(ROW(Aktiviteetti))+1),ROWS($B$3:B28)))&CHAR(10),\"\")","v":""},null,{"$f":"IFERROR(INDEX(Aktiviteetti,SMALL(IF(Tavoite=$H$2,ROW(Aktiviteetti)-MIN(ROW(Aktiviteetti))+1),ROWS($B$3:B28)))&CHAR(10),\"\")","v":""}]
[null,{"$f":"IFERROR(INDEX(Aktiviteetti,SMALL(IF(Tavoite=$B$2,ROW(Aktiviteetti)-MIN(ROW(Aktiviteetti))+1),ROWS($B$3:B29)))&\" \"&CHAR(10)&(INDEX(Tulos,SMALL(IF(Tavoite=$B$2,ROW(Tulos)-MIN(ROW(Tulos))+1),ROWS($B$3:B29))))&CHAR(10),\"\")","v":""},null,{"$f":"IFERROR(INDEX(Aktiviteetti,SMALL(IF(Tavoite=$D$2,ROW(Aktiviteetti)-MIN(ROW(Aktiviteetti))+1),ROWS($B$3:B29)))&CHAR(10),\"\")","v":""},null,{"$f":"IFERROR(INDEX(Aktiviteetti,SMALL(IF(Tavoite=$F$2,ROW(Aktiviteetti)-MIN(ROW(Aktiviteetti))+1),ROWS($B$3:B29)))&CHAR(10),\"\")","v":""},null,{"$f":"IFERROR(INDEX(Aktiviteetti,SMALL(IF(Tavoite=$H$2,ROW(Aktiviteetti)-MIN(ROW(Aktiviteetti))+1),ROWS($B$3:B29)))&CHAR(10),\"\")","v":""}]
[null,{"$f":"IFERROR(INDEX(Aktiviteetti,SMALL(IF(Tavoite=$B$2,ROW(Aktiviteetti)-MIN(ROW(Aktiviteetti))+1),ROWS($B$3:B30)))&\" \"&CHAR(10)&(INDEX(Tulos,SMALL(IF(Tavoite=$B$2,ROW(Tulos)-MIN(ROW(Tulos))+1),ROWS($B$3:B30))))&CHAR(10),\"\")","v":""},null,{"$f":"IFERROR(INDEX(Aktiviteetti,SMALL(IF(Tavoite=$D$2,ROW(Aktiviteetti)-MIN(ROW(Aktiviteetti))+1),ROWS($B$3:B30)))&CHAR(10),\"\")","v":""},null,{"$f":"IFERROR(INDEX(Aktiviteetti,SMALL(IF(Tavoite=$F$2,ROW(Aktiviteetti)-MIN(ROW(Aktiviteetti))+1),ROWS($B$3:B30)))&CHAR(10),\"\")","v":""},null,{"$f":"IFERROR(INDEX(Aktiviteetti,SMALL(IF(Tavoite=$H$2,ROW(Aktiviteetti)-MIN(ROW(Aktiviteetti))+1),ROWS($B$3:B30)))&CHAR(10),\"\")","v":""}]
[null,{"$f":"IFERROR(INDEX(Aktiviteetti,SMALL(IF(Tavoite=$B$2,ROW(Aktiviteetti)-MIN(ROW(Aktiviteetti))+1),ROWS($B$3:B31)))&\" \"&CHAR(10)&(INDEX(Tulos,SMALL(IF(Tavoite=$B$2,ROW(Tulos)-MIN(ROW(Tulos))+1),ROWS($B$3:B31))))&CHAR(10),\"\")","v":""},null,{"$f":"IFERROR(INDEX(Aktiviteetti,SMALL(IF(Tavoite=$D$2,ROW(Aktiviteetti)-MIN(ROW(Aktiviteetti))+1),ROWS($B$3:B31)))&CHAR(10),\"\")","v":""},null,{"$f":"IFERROR(INDEX(Aktiviteetti,SMALL(IF(Tavoite=$F$2,ROW(Aktiviteetti)-MIN(ROW(Aktiviteetti))+1),ROWS($B$3:B31)))&CHAR(10),\"\")","v":""},null,{"$f":"IFERROR(INDEX(Aktiviteetti,SMALL(IF(Tavoite=$H$2,ROW(Aktiviteetti)-MIN(ROW(Aktiviteetti))+1),ROWS($B$3:B31)))&CHAR(10),\"\")","v":""}]
[null,{"$f":"IFERROR(INDEX(Aktiviteetti,SMALL(IF(Tavoite=$B$2,ROW(Aktiviteetti)-MIN(ROW(Aktiviteetti))+1),ROWS($B$3:B32)))&\" \"&CHAR(10)&(INDEX(Tulos,SMALL(IF(Tavoite=$B$2,ROW(Tulos)-MIN(ROW(Tulos))+1),ROWS($B$3:B32))))&CHAR(10),\"\")","v":""},null,{"$f":"IFERROR(INDEX(Aktiviteetti,SMALL(IF(Tavoite=$D$2,ROW(Aktiviteetti)-MIN(ROW(Aktiviteetti))+1),ROWS($B$3:B32)))&CHAR(10),\"\")","v":""},null,{"$f":"IFERROR(INDEX(Aktiviteetti,SMALL(IF(Tavoite=$F$2,ROW(Aktiviteetti)-MIN(ROW(Aktiviteetti))+1),ROWS($B$3:B32)))&CHAR(10),\"\")","v":""},null,{"$f":"IFERROR(INDEX(Aktiviteetti,SMALL(IF(Tavoite=$H$2,ROW(Aktiviteetti)-MIN(ROW(Aktiviteetti))+1),ROWS($B$3:B32)))&CHAR(10),\"\")","v":""}]
[null,{"$f":"IFERROR(INDEX(Aktiviteetti,SMALL(IF(Tavoite=$B$2,ROW(Aktiviteetti)-MIN(ROW(Aktiviteetti))+1),ROWS($B$3:B33)))&\" \"&CHAR(10)&(INDEX(Tulos,SMALL(IF(Tavoite=$B$2,ROW(Tulos)-MIN(ROW(Tulos))+1),ROWS($B$3:B33))))&CHAR(10),\"\")","v":""},null,{"$f":"IFERROR(INDEX(Aktiviteetti,SMALL(IF(Tavoite=$D$2,ROW(Aktiviteetti)-MIN(ROW(Aktiviteetti))+1),ROWS($B$3:B33)))&CHAR(10),\"\")","v":""},null,{"$f":"IFERROR(INDEX(Aktiviteetti,SMALL(IF(Tavoite=$F$2,ROW(Aktiviteetti)-MIN(ROW(Aktiviteetti))+1),ROWS($B$3:B33)))&CHAR(10),\"\")","v":""},null,{"$f":"IFERROR(INDEX(Aktiviteetti,SMALL(IF(Tavoite=$H$2,ROW(Aktiviteetti)-MIN(ROW(Aktiviteetti))+1),ROWS($B$3:B33)))&CHAR(10),\"\")","v":""}]
[null,{"$f":"IFERROR(INDEX(Aktiviteetti,SMALL(IF(Tavoite=$B$2,ROW(Aktiviteetti)-MIN(ROW(Aktiviteetti))+1),ROWS($B$3:B34)))&\" \"&CHAR(10)&(INDEX(Tulos,SMALL(IF(Tavoite=$B$2,ROW(Tulos)-MIN(ROW(Tulos))+1),ROWS($B$3:B34))))&CHAR(10),\"\")","v":""},null,{"$f":"IFERROR(INDEX(Aktiviteetti,SMALL(IF(Tavoite=$D$2,ROW(Aktiviteetti)-MIN(ROW(Aktiviteetti))+1),ROWS($B$3:B34)))&CHAR(10),\"\")","v":""},null,{"$f":"IFERROR(INDEX(Aktiviteetti,SMALL(IF(Tavoite=$F$2,ROW(Aktiviteetti)-MIN(ROW(Aktiviteetti))+1),ROWS($B$3:B34)))&CHAR(10),\"\")","v":""},null,{"$f":"IFERROR(INDEX(Aktiviteetti,SMALL(IF(Tavoite=$H$2,ROW(Aktiviteetti)-MIN(ROW(Aktiviteetti))+1),ROWS($B$3:B34)))&CHAR(10),\"\")","v":""}]
[null,{"$f":"IFERROR(INDEX(Aktiviteetti,SMALL(IF(Tavoite=$B$2,ROW(Aktiviteetti)-MIN(ROW(Aktiviteetti))+1),ROWS($B$3:B35)))&\" \"&CHAR(10)&(INDEX(Tulos,SMALL(IF(Tavoite=$B$2,ROW(Tulos)-MIN(ROW(Tulos))+1),ROWS($B$3:B35))))&CHAR(10),\"\")","v":""},null,{"$f":"IFERROR(INDEX(Aktiviteetti,SMALL(IF(Tavoite=$D$2,ROW(Aktiviteetti)-MIN(ROW(Aktiviteetti))+1),ROWS($B$3:B35)))&CHAR(10),\"\")","v":""},null,{"$f":"IFERROR(INDEX(Aktiviteetti,SMALL(IF(Tavoite=$F$2,ROW(Aktiviteetti)-MIN(ROW(Aktiviteetti))+1),ROWS($B$3:B35)))&CHAR(10),\"\")","v":""},null,{"$f":"IFERROR(INDEX(Aktiviteetti,SMALL(IF(Tavoite=$H$2,ROW(Aktiviteetti)-MIN(ROW(Aktiviteetti))+1),ROWS($B$3:B35)))&CHAR(10),\"\")","v":""}]
[null,{"$f":"IFERROR(INDEX(Aktiviteetti,SMALL(IF(Tavoite=$B$2,ROW(Aktiviteetti)-MIN(ROW(Aktiviteetti))+1),ROWS($B$3:B36)))&\" \"&CHAR(10)&(INDEX(Tulos,SMALL(IF(Tavoite=$B$2,ROW(Tulos)-MIN(ROW(Tulos))+1),ROWS($B$3:B36))))&CHAR(10),\"\")","v":""},null,{"$f":"IFERROR(INDEX(Aktiviteetti,SMALL(IF(Tavoite=$D$2,ROW(Aktiviteetti)-MIN(ROW(Aktiviteetti))+1),ROWS($B$3:B36)))&CHAR(10),\"\")","v":""},null,{"$f":"IFERROR(INDEX(Aktiviteetti,SMALL(IF(Tavoite=$F$2,ROW(Aktiviteetti)-MIN(ROW(Aktiviteetti))+1),ROWS($B$3:B36)))&CHAR(10),\"\")","v":""},null,{"$f":"IFERROR(INDEX(Aktiviteetti,SMALL(IF(Tavoite=$H$2,ROW(Aktiviteetti)-MIN(ROW(Aktiviteetti))+1),ROWS($B$3:B36)))&CHAR(10),\"\")","v":""}]
[null,{"$f":"IFERROR(INDEX(Aktiviteetti,SMALL(IF(Tavoite=$B$2,ROW(Aktiviteetti)-MIN(ROW(Aktiviteetti))+1),ROWS($B$3:B37)))&\" \"&CHAR(10)&(INDEX(Tulos,SMALL(IF(Tavoite=$B$2,ROW(Tulos)-MIN(ROW(Tulos))+1),ROWS($B$3:B37))))&CHAR(10),\"\")","v":""},null,{"$f":"IFERROR(INDEX(Aktiviteetti,SMALL(IF(Tavoite=$D$2,ROW(Aktiviteetti)-MIN(ROW(Aktiviteetti))+1),ROWS($B$3:B37)))&CHAR(10),\"\")","v":""},null,{"$f":"IFERROR(INDEX(Aktiviteetti,SMALL(IF(Tavoite=$F$2,ROW(Aktiviteetti)-MIN(ROW(Aktiviteetti))+1),ROWS($B$3:B37)))&CHAR(10),\"\")","v":""},null,{"$f":"IFERROR(INDEX(Aktiviteetti,SMALL(IF(Tavoite=$H$2,ROW(Aktiviteetti)-MIN(ROW(Aktiviteetti))+1),ROWS($B$3:B37)))&CHAR(10),\"\")","v":""}]
[null,{"$f":"IFERROR(INDEX(Aktiviteetti,SMALL(IF(Tavoite=$B$2,ROW(Aktiviteetti)-MIN(ROW(Aktiviteetti))+1),ROWS($B$3:B38)))&\" \"&CHAR(10)&(INDEX(Tulos,SMALL(IF(Tavoite=$B$2,ROW(Tulos)-MIN(ROW(Tulos))+1),ROWS($B$3:B38))))&CHAR(10),\"\")","v":""},null,{"$f":"IFERROR(INDEX(Aktiviteetti,SMALL(IF(Tavoite=$D$2,ROW(Aktiviteetti)-MIN(ROW(Aktiviteetti))+1),ROWS($B$3:B38)))&CHAR(10),\"\")","v":""},null,{"$f":"IFERROR(INDEX(Aktiviteetti,SMALL(IF(Tavoite=$F$2,ROW(Aktiviteetti)-MIN(ROW(Aktiviteetti))+1),ROWS($B$3:B38)))&CHAR(10),\"\")","v":""},null,{"$f":"IFERROR(INDEX(Aktiviteetti,SMALL(IF(Tavoite=$H$2,ROW(Aktiviteetti)-MIN(ROW(Aktiviteetti))+1),ROWS($B$3:B38)))&CHAR(10),\"\")","v":""}]
[null,{"$f":"IFERROR(INDEX(Aktiviteetti,SMALL(IF(Tavoite=$B$2,ROW(Aktiviteetti)-MIN(ROW(Aktiviteetti))+1),ROWS($B$3:B39)))&\" \"&CHAR(10)&(INDEX(Tulos,SMALL(IF(Tavoite=$B$2,ROW(Tulos)-MIN(ROW(Tulos))+1),ROWS($B$3:B39))))&CHAR(10),\"\")","v":""},null,{"$f":"IFERROR(INDEX(Aktiviteetti,SMALL(IF(Tavoite=$D$2,ROW(Aktiviteetti)-MIN(ROW(Aktiviteetti))+1),ROWS($B$3:B39)))&CHAR(10),\"\")","v":""},null,{"$f":"IFERROR(INDEX(Aktiviteetti,SMALL(IF(Tavoite=$F$2,ROW(Aktiviteetti)-MIN(ROW(Aktiviteetti))+1),ROWS($B$3:B39)))&CHAR(10),\"\")","v":""},null,{"$f":"IFERROR(INDEX(Aktiviteetti,SMALL(IF(Tavoite=$H$2,ROW(Aktiviteetti)-MIN(ROW(Aktiviteetti))+1),ROWS($B$3:B39)))&CHAR(10),\"\")","v":""}]
[null,{"$f":"IFERROR(INDEX(Aktiviteetti,SMALL(IF(Tavoite=$B$2,ROW(Aktiviteetti)-MIN(ROW(Aktiviteetti))+1),ROWS($B$3:B40)))&\" \"&CHAR(10)&(INDEX(Tulos,SMALL(IF(Tavoite=$B$2,ROW(Tulos)-MIN(ROW(Tulos))+1),ROWS($B$3:B40))))&CHAR(10),\"\")","v":""},null,{"$f":"IFERROR(INDEX(Aktiviteetti,SMALL(IF(Tavoite=$D$2,ROW(Aktiviteetti)-MIN(ROW(Aktiviteetti))+1),ROWS($B$3:B40)))&CHAR(10),\"\")","v":""},null,{"$f":"IFERROR(INDEX(Aktiviteetti,SMALL(IF(Tavoite=$F$2,ROW(Aktiviteetti)-MIN(ROW(Aktiviteetti))+1),ROWS($B$3:B40)))&CHAR(10),\"\")","v":""},null,{"$f":"IFERROR(INDEX(Aktiviteetti,SMALL(IF(Tavoite=$H$2,ROW(Aktiviteetti)-MIN(ROW(Aktiviteetti))+1),ROWS($B$3:B40)))&CHAR(10),\"\")","v":""}]
[null,{"$f":"IFERROR(INDEX(Aktiviteetti,SMALL(IF(Tavoite=$B$2,ROW(Aktiviteetti)-MIN(ROW(Aktiviteetti))+1),ROWS($B$3:B41)))&\" \"&CHAR(10)&(INDEX(Tulos,SMALL(IF(Tavoite=$B$2,ROW(Tulos)-MIN(ROW(Tulos))+1),ROWS($B$3:B41))))&CHAR(10),\"\")","v":""},null,{"$f":"IFERROR(INDEX(Aktiviteetti,SMALL(IF(Tavoite=$D$2,ROW(Aktiviteetti)-MIN(ROW(Aktiviteetti))+1),ROWS($B$3:B41)))&CHAR(10),\"\")","v":""},null,{"$f":"IFERROR(INDEX(Aktiviteetti,SMALL(IF(Tavoite=$F$2,ROW(Aktiviteetti)-MIN(ROW(Aktiviteetti))+1),ROWS($B$3:B41)))&CHAR(10),\"\")","v":""},null,{"$f":"IFERROR(INDEX(Aktiviteetti,SMALL(IF(Tavoite=$H$2,ROW(Aktiviteetti)-MIN(ROW(Aktiviteetti))+1),ROWS($B$3:B41)))&CHAR(10),\"\")","v":""}]
[null,{"$f":"IFERROR(INDEX(Aktiviteetti,SMALL(IF(Tavoite=$B$2,ROW(Aktiviteetti)-MIN(ROW(Aktiviteetti))+1),ROWS($B$3:B42)))&\" \"&CHAR(10)&(INDEX(Tulos,SMALL(IF(Tavoite=$B$2,ROW(Tulos)-MIN(ROW(Tulos))+1),ROWS($B$3:B42))))&CHAR(10),\"\")","v":""},null,{"$f":"IFERROR(INDEX(Aktiviteetti,SMALL(IF(Tavoite=$D$2,ROW(Aktiviteetti)-MIN(ROW(Aktiviteetti))+1),ROWS($B$3:B42)))&CHAR(10),\"\")","v":""},null,{"$f":"IFERROR(INDEX(Aktiviteetti,SMALL(IF(Tavoite=$F$2,ROW(Aktiviteetti)-MIN(ROW(Aktiviteetti))+1),ROWS($B$3:B42)))&CHAR(10),\"\")","v":""},null,{"$f":"IFERROR(INDEX(Aktiviteetti,SMALL(IF(Tavoite=$H$2,ROW(Aktiviteetti)-MIN(ROW(Aktiviteetti))+1),ROWS($B$3:B42)))&CHAR(10),\"\")","v":""}]
[null,{"$f":"IFERROR(INDEX(Aktiviteetti,SMALL(IF(Tavoite=$B$2,ROW(Aktiviteetti)-MIN(ROW(Aktiviteetti))+1),ROWS($B$3:B43)))&\" \"&CHAR(10)&(INDEX(Tulos,SMALL(IF(Tavoite=$B$2,ROW(Tulos)-MIN(ROW(Tulos))+1),ROWS($B$3:B43))))&CHAR(10),\"\")","v":""},null,{"$f":"IFERROR(INDEX(Aktiviteetti,SMALL(IF(Tavoite=$D$2,ROW(Aktiviteetti)-MIN(ROW(Aktiviteetti))+1),ROWS($B$3:B43)))&CHAR(10),\"\")","v":""},null,{"$f":"IFERROR(INDEX(Aktiviteetti,SMALL(IF(Tavoite=$F$2,ROW(Aktiviteetti)-MIN(ROW(Aktiviteetti))+1),ROWS($B$3:B43)))&CHAR(10),\"\")","v":""},null,{"$f":"IFERROR(INDEX(Aktiviteetti,SMALL(IF(Tavoite=$H$2,ROW(Aktiviteetti)-MIN(ROW(Aktiviteetti))+1),ROWS($B$3:B43)))&CHAR(10),\"\")","v":""}]
[null,{"$f":"IFERROR(INDEX(Aktiviteetti,SMALL(IF(Tavoite=$B$2,ROW(Aktiviteetti)-MIN(ROW(Aktiviteetti))+1),ROWS($B$3:B44)))&\" \"&CHAR(10)&(INDEX(Tulos,SMALL(IF(Tavoite=$B$2,ROW(Tulos)-MIN(ROW(Tulos))+1),ROWS($B$3:B44))))&CHAR(10),\"\")","v":""},null,{"$f":"IFERROR(INDEX(Aktiviteetti,SMALL(IF(Tavoite=$D$2,ROW(Aktiviteetti)-MIN(ROW(Aktiviteetti))+1),ROWS($B$3:B44)))&CHAR(10),\"\")","v":""},null,{"$f":"IFERROR(INDEX(Aktiviteetti,SMALL(IF(Tavoite=$F$2,ROW(Aktiviteetti)-MIN(ROW(Aktiviteetti))+1),ROWS($B$3:B44)))&CHAR(10),\"\")","v":""},null,{"$f":"IFERROR(INDEX(Aktiviteetti,SMALL(IF(Tavoite=$H$2,ROW(Aktiviteetti)-MIN(ROW(Aktiviteetti))+1),ROWS($B$3:B44)))&CHAR(10),\"\")","v":""}]
[null,{"$f":"IFERROR(INDEX(Aktiviteetti,SMALL(IF(Tavoite=$B$2,ROW(Aktiviteetti)-MIN(ROW(Aktiviteetti))+1),ROWS($B$3:B45)))&\" \"&CHAR(10)&(INDEX(Tulos,SMALL(IF(Tavoite=$B$2,ROW(Tulos)-MIN(ROW(Tulos))+1),ROWS($B$3:B45))))&CHAR(10),\"\")","v":""},null,{"$f":"IFERROR(INDEX(Aktiviteetti,SMALL(IF(Tavoite=$D$2,ROW(Aktiviteetti)-MIN(ROW(Aktiviteetti))+1),ROWS($B$3:B45)))&CHAR(10),\"\")","v":""},null,{"$f":"IFERROR(INDEX(Aktiviteetti,SMALL(IF(Tavoite=$F$2,ROW(Aktiviteetti)-MIN(ROW(Aktiviteetti))+1),ROWS($B$3:B45)))&CHAR(10),\"\")","v":""},null,{"$f":"IFERROR(INDEX(Aktiviteetti,SMALL(IF(Tavoite=$H$2,ROW(Aktiviteetti)-MIN(ROW(Aktiviteetti))+1),ROWS($B$3:B45)))&CHAR(10),\"\")","v":""}]
[null,{"$f":"IFERROR(INDEX(Aktiviteetti,SMALL(IF(Tavoite=$B$2,ROW(Aktiviteetti)-MIN(ROW(Aktiviteetti))+1),ROWS($B$3:B46)))&\" \"&CHAR(10)&(INDEX(Tulos,SMALL(IF(Tavoite=$B$2,ROW(Tulos)-MIN(ROW(Tulos))+1),ROWS($B$3:B46))))&CHAR(10),\"\")","v":""},null,{"$f":"IFERROR(INDEX(Aktiviteetti,SMALL(IF(Tavoite=$D$2,ROW(Aktiviteetti)-MIN(ROW(Aktiviteetti))+1),ROWS($B$3:B46)))&CHAR(10),\"\")","v":""},null,{"$f":"IFERROR(INDEX(Aktiviteetti,SMALL(IF(Tavoite=$F$2,ROW(Aktiviteetti)-MIN(ROW(Aktiviteetti))+1),ROWS($B$3:B46)))&CHAR(10),\"\")","v":""},null,{"$f":"IFERROR(INDEX(Aktiviteetti,SMALL(IF(Tavoite=$H$2,ROW(Aktiviteetti)-MIN(ROW(Aktiviteetti))+1),ROWS($B$3:B46)))&CHAR(10),\"\")","v":""}]
[null,{"$f":"IFERROR(INDEX(Aktiviteetti,SMALL(IF(Tavoite=$B$2,ROW(Aktiviteetti)-MIN(ROW(Aktiviteetti))+1),ROWS($B$3:B47)))&\" \"&CHAR(10)&(INDEX(Tulos,SMALL(IF(Tavoite=$B$2,ROW(Tulos)-MIN(ROW(Tulos))+1),ROWS($B$3:B47))))&CHAR(10),\"\")","v":""},null,{"$f":"IFERROR(INDEX(Aktiviteetti,SMALL(IF(Tavoite=$D$2,ROW(Aktiviteetti)-MIN(ROW(Aktiviteetti))+1),ROWS($B$3:B47)))&CHAR(10),\"\")","v":""},null,{"$f":"IFERROR(INDEX(Aktiviteetti,SMALL(IF(Tavoite=$F$2,ROW(Aktiviteetti)-MIN(ROW(Aktiviteetti))+1),ROWS($B$3:B47)))&CHAR(10),\"\")","v":""},null,{"$f":"IFERROR(INDEX(Aktiviteetti,SMALL(IF(Tavoite=$H$2,ROW(Aktiviteetti)-MIN(ROW(Aktiviteetti))+1),ROWS($B$3:B47)))&CHAR(10),\"\")","v":""}]
[null,{"$f":"IFERROR(INDEX(Aktiviteetti,SMALL(IF(Tavoite=$B$2,ROW(Aktiviteetti)-MIN(ROW(Aktiviteetti))+1),ROWS($B$3:B48)))&\" \"&CHAR(10)&(INDEX(Tulos,SMALL(IF(Tavoite=$B$2,ROW(Tulos)-MIN(ROW(Tulos))+1),ROWS($B$3:B48))))&CHAR(10),\"\")","v":""},null,{"$f":"IFERROR(INDEX(Aktiviteetti,SMALL(IF(Tavoite=$D$2,ROW(Aktiviteetti)-MIN(ROW(Aktiviteetti))+1),ROWS($B$3:B48)))&CHAR(10),\"\")","v":""},null,{"$f":"IFERROR(INDEX(Aktiviteetti,SMALL(IF(Tavoite=$F$2,ROW(Aktiviteetti)-MIN(ROW(Aktiviteetti))+1),ROWS($B$3:B48)))&CHAR(10),\"\")","v":""},null,{"$f":"IFERROR(INDEX(Aktiviteetti,SMALL(IF(Tavoite=$H$2,ROW(Aktiviteetti)-MIN(ROW(Aktiviteetti))+1),ROWS($B$3:B48)))&CHAR(10),\"\")","v":""}]
[null,{"$f":"IFERROR(INDEX(Aktiviteetti,SMALL(IF(Tavoite=$B$2,ROW(Aktiviteetti)-MIN(ROW(Aktiviteetti))+1),ROWS($B$3:B49)))&\" \"&CHAR(10)&(INDEX(Tulos,SMALL(IF(Tavoite=$B$2,ROW(Tulos)-MIN(ROW(Tulos))+1),ROWS($B$3:B49))))&CHAR(10),\"\")","v":""},null,{"$f":"IFERROR(INDEX(Aktiviteetti,SMALL(IF(Tavoite=$D$2,ROW(Aktiviteetti)-MIN(ROW(Aktiviteetti))+1),ROWS($B$3:B49)))&CHAR(10),\"\")","v":""},null,{"$f":"IFERROR(INDEX(Aktiviteetti,SMALL(IF(Tavoite=$F$2,ROW(Aktiviteetti)-MIN(ROW(Aktiviteetti))+1),ROWS($B$3:B49)))&CHAR(10),\"\")","v":""},null,{"$f":"IFERROR(INDEX(Aktiviteetti,SMALL(IF(Tavoite=$H$2,ROW(Aktiviteetti)-MIN(ROW(Aktiviteetti))+1),ROWS($B$3:B49)))&CHAR(10),\"\")","v":""}]
[null,{"$f":"IFERROR(INDEX(Aktiviteetti,SMALL(IF(Tavoite=$B$2,ROW(Aktiviteetti)-MIN(ROW(Aktiviteetti))+1),ROWS($B$3:B50)))&\" \"&CHAR(10)&(INDEX(Tulos,SMALL(IF(Tavoite=$B$2,ROW(Tulos)-MIN(ROW(Tulos))+1),ROWS($B$3:B50))))&CHAR(10),\"\")","v":""},null,{"$f":"IFERROR(INDEX(Aktiviteetti,SMALL(IF(Tavoite=$D$2,ROW(Aktiviteetti)-MIN(ROW(Aktiviteetti))+1),ROWS($B$3:B50)))&CHAR(10),\"\")","v":""},null,{"$f":"IFERROR(INDEX(Aktiviteetti,SMALL(IF(Tavoite=$F$2,ROW(Aktiviteetti)-MIN(ROW(Aktiviteetti))+1),ROWS($B$3:B50)))&CHAR(10),\"\")","v":""},null,{"$f":"IFERROR(INDEX(Aktiviteetti,SMALL(IF(Tavoite=$H$2,ROW(Aktiviteetti)-MIN(ROW(Aktiviteetti))+1),ROWS($B$3:B50)))&CHAR(10),\"\")","v":""}]
[null,{"$f":"IFERROR(INDEX(Aktiviteetti,SMALL(IF(Tavoite=$B$2,ROW(Aktiviteetti)-MIN(ROW(Aktiviteetti))+1),ROWS($B$3:B51)))&\" \"&CHAR(10)&(INDEX(Tulos,SMALL(IF(Tavoite=$B$2,ROW(Tulos)-MIN(ROW(Tulos))+1),ROWS($B$3:B51))))&CHAR(10),\"\")","v":""},null,{"$f":"IFERROR(INDEX(Aktiviteetti,SMALL(IF(Tavoite=$D$2,ROW(Aktiviteetti)-MIN(ROW(Aktiviteetti))+1),ROWS($B$3:B51)))&CHAR(10),\"\")","v":""},null,{"$f":"IFERROR(INDEX(Aktiviteetti,SMALL(IF(Tavoite=$F$2,ROW(Aktiviteetti)-MIN(ROW(Aktiviteetti))+1),ROWS($B$3:B51)))&CHAR(10),\"\")","v":""},null,{"$f":"IFERROR(INDEX(Aktiviteetti,SMALL(IF(Tavoite=$H$2,ROW(Aktiviteetti)-MIN(ROW(Aktiviteetti))+1),ROWS($B$3:B51)))&CHAR(10),\"\")","v":""}]
[null,{"$f":"IFERROR(INDEX(Aktiviteetti,SMALL(IF(Tavoite=$B$2,ROW(Aktiviteetti)-MIN(ROW(Aktiviteetti))+1),ROWS($B$3:B52)))&\" \"&CHAR(10)&(INDEX(Tulos,SMALL(IF(Tavoite=$B$2,ROW(Tulos)-MIN(ROW(Tulos))+1),ROWS($B$3:B52))))&CHAR(10),\"\")","v":""},null,{"$f":"IFERROR(INDEX(Aktiviteetti,SMALL(IF(Tavoite=$D$2,ROW(Aktiviteetti)-MIN(ROW(Aktiviteetti))+1),ROWS($B$3:B52)))&CHAR(10),\"\")","v":""},null,{"$f":"IFERROR(INDEX(Aktiviteetti,SMALL(IF(Tavoite=$F$2,ROW(Aktiviteetti)-MIN(ROW(Aktiviteetti))+1),ROWS($B$3:B52)))&CHAR(10),\"\")","v":""},null,{"$f":"IFERROR(INDEX(Aktiviteetti,SMALL(IF(Tavoite=$H$2,ROW(Aktiviteetti)-MIN(ROW(Aktiviteetti))+1),ROWS($B$3:B52)))&CHAR(10),\"\")","v":""}]
[null,{"$f":"IFERROR(INDEX(Aktiviteetti,SMALL(IF(Tavoite=$B$2,ROW(Aktiviteetti)-MIN(ROW(Aktiviteetti))+1),ROWS($B$3:B53)))&\" \"&CHAR(10)&(INDEX(Tulos,SMALL(IF(Tavoite=$B$2,ROW(Tulos)-MIN(ROW(Tulos))+1),ROWS($B$3:B53))))&CHAR(10),\"\")","v":""},null,{"$f":"IFERROR(INDEX(Aktiviteetti,SMALL(IF(Tavoite=$D$2,ROW(Aktiviteetti)-MIN(ROW(Aktiviteetti))+1),ROWS($B$3:B53)))&CHAR(10),\"\")","v":""},null,{"$f":"IFERROR(INDEX(Aktiviteetti,SMALL(IF(Tavoite=$F$2,ROW(Aktiviteetti)-MIN(ROW(Aktiviteetti))+1),ROWS($B$3:B53)))&CHAR(10),\"\")","v":""},null,{"$f":"IFERROR(INDEX(Aktiviteetti,SMALL(IF(Tavoite=$H$2,ROW(Aktiviteetti)-MIN(ROW(Aktiviteetti))+1),ROWS($B$3:B53)))&CHAR(10),\"\")","v":""}]
[null,{"$f":"IFERROR(INDEX(Aktiviteetti,SMALL(IF(Tavoite=$B$2,ROW(Aktiviteetti)-MIN(ROW(Aktiviteetti))+1),ROWS($B$3:B54)))&\" \"&CHAR(10)&(INDEX(Tulos,SMALL(IF(Tavoite=$B$2,ROW(Tulos)-MIN(ROW(Tulos))+1),ROWS($B$3:B54))))&CHAR(10),\"\")","v":""},null,{"$f":"IFERROR(INDEX(Aktiviteetti,SMALL(IF(Tavoite=$D$2,ROW(Aktiviteetti)-MIN(ROW(Aktiviteetti))+1),ROWS($B$3:B54)))&CHAR(10),\"\")","v":""},null,{"$f":"IFERROR(INDEX(Aktiviteetti,SMALL(IF(Tavoite=$F$2,ROW(Aktiviteetti)-MIN(ROW(Aktiviteetti))+1),ROWS($B$3:B54)))&CHAR(10),\"\")","v":""},null,{"$f":"IFERROR(INDEX(Aktiviteetti,SMALL(IF(Tavoite=$H$2,ROW(Aktiviteetti)-MIN(ROW(Aktiviteetti))+1),ROWS($B$3:B54)))&CHAR(10),\"\")","v":""}]
[null,{"$f":"IFERROR(INDEX(Aktiviteetti,SMALL(IF(Tavoite=$B$2,ROW(Aktiviteetti)-MIN(ROW(Aktiviteetti))+1),ROWS($B$3:B55)))&\" \"&CHAR(10)&(INDEX(Tulos,SMALL(IF(Tavoite=$B$2,ROW(Tulos)-MIN(ROW(Tulos))+1),ROWS($B$3:B55))))&CHAR(10),\"\")","v":""},null,{"$f":"IFERROR(INDEX(Aktiviteetti,SMALL(IF(Tavoite=$D$2,ROW(Aktiviteetti)-MIN(ROW(Aktiviteetti))+1),ROWS($B$3:B55)))&CHAR(10),\"\")","v":""},null,{"$f":"IFERROR(INDEX(Aktiviteetti,SMALL(IF(Tavoite=$F$2,ROW(Aktiviteetti)-MIN(ROW(Aktiviteetti))+1),ROWS($B$3:B55)))&CHAR(10),\"\")","v":""},null,{"$f":"IFERROR(INDEX(Aktiviteetti,SMALL(IF(Tavoite=$H$2,ROW(Aktiviteetti)-MIN(ROW(Aktiviteetti))+1),ROWS($B$3:B55)))&CHAR(10),\"\")","v":""}]
[null,{"$f":"IFERROR(INDEX(Aktiviteetti,SMALL(IF(Tavoite=$B$2,ROW(Aktiviteetti)-MIN(ROW(Aktiviteetti))+1),ROWS($B$3:B56)))&\" \"&CHAR(10)&(INDEX(Tulos,SMALL(IF(Tavoite=$B$2,ROW(Tulos)-MIN(ROW(Tulos))+1),ROWS($B$3:B56))))&CHAR(10),\"\")","v":""},null,{"$f":"IFERROR(INDEX(Aktiviteetti,SMALL(IF(Tavoite=$D$2,ROW(Aktiviteetti)-MIN(ROW(Aktiviteetti))+1),ROWS($B$3:B56)))&CHAR(10),\"\")","v":""},null,{"$f":"IFERROR(INDEX(Aktiviteetti,SMALL(IF(Tavoite=$F$2,ROW(Aktiviteetti)-MIN(ROW(Aktiviteetti))+1),ROWS($B$3:B56)))&CHAR(10),\"\")","v":""},null,{"$f":"IFERROR(INDEX(Aktiviteetti,SMALL(IF(Tavoite=$H$2,ROW(Aktiviteetti)-MIN(ROW(Aktiviteetti))+1),ROWS($B$3:B56)))&CHAR(10),\"\")","v":""}]
[null,{"$f":"IFERROR(INDEX(Aktiviteetti,SMALL(IF(Tavoite=$B$2,ROW(Aktiviteetti)-MIN(ROW(Aktiviteetti))+1),ROWS($B$3:B57)))&\" \"&CHAR(10)&(INDEX(Tulos,SMALL(IF(Tavoite=$B$2,ROW(Tulos)-MIN(ROW(Tulos))+1),ROWS($B$3:B57))))&CHAR(10),\"\")","v":""},null,{"$f":"IFERROR(INDEX(Aktiviteetti,SMALL(IF(Tavoite=$D$2,ROW(Aktiviteetti)-MIN(ROW(Aktiviteetti))+1),ROWS($B$3:B57)))&CHAR(10),\"\")","v":""},null,{"$f":"IFERROR(INDEX(Aktiviteetti,SMALL(IF(Tavoite=$F$2,ROW(Aktiviteetti)-MIN(ROW(Aktiviteetti))+1),ROWS($B$3:B57)))&CHAR(10),\"\")","v":""},null,{"$f":"IFERROR(INDEX(Aktiviteetti,SMALL(IF(Tavoite=$H$2,ROW(Aktiviteetti)-MIN(ROW(Aktiviteetti))+1),ROWS($B$3:B57)))&CHAR(10),\"\")","v":""}]
[null,{"$f":"IFERROR(INDEX(Aktiviteetti,SMALL(IF(Tavoite=$B$2,ROW(Aktiviteetti)-MIN(ROW(Aktiviteetti))+1),ROWS($B$3:B58)))&\" \"&CHAR(10)&(INDEX(Tulos,SMALL(IF(Tavoite=$B$2,ROW(Tulos)-MIN(ROW(Tulos))+1),ROWS($B$3:B58))))&CHAR(10),\"\")","v":""},null,{"$f":"IFERROR(INDEX(Aktiviteetti,SMALL(IF(Tavoite=$D$2,ROW(Aktiviteetti)-MIN(ROW(Aktiviteetti))+1),ROWS($B$3:B58)))&CHAR(10),\"\")","v":""},null,{"$f":"IFERROR(INDEX(Aktiviteetti,SMALL(IF(Tavoite=$F$2,ROW(Aktiviteetti)-MIN(ROW(Aktiviteetti))+1),ROWS($B$3:B58)))&CHAR(10),\"\")","v":""},null,{"$f":"IFERROR(INDEX(Aktiviteetti,SMALL(IF(Tavoite=$H$2,ROW(Aktiviteetti)-MIN(ROW(Aktiviteetti))+1),ROWS($B$3:B58)))&CHAR(10),\"\")","v":""}]
[null,{"$f":"IFERROR(INDEX(Aktiviteetti,SMALL(IF(Tavoite=$B$2,ROW(Aktiviteetti)-MIN(ROW(Aktiviteetti))+1),ROWS($B$3:B59)))&\" \"&CHAR(10)&(INDEX(Tulos,SMALL(IF(Tavoite=$B$2,ROW(Tulos)-MIN(ROW(Tulos))+1),ROWS($B$3:B59))))&CHAR(10),\"\")","v":""},null,{"$f":"IFERROR(INDEX(Aktiviteetti,SMALL(IF(Tavoite=$D$2,ROW(Aktiviteetti)-MIN(ROW(Aktiviteetti))+1),ROWS($B$3:B59)))&CHAR(10),\"\")","v":""},null,{"$f":"IFERROR(INDEX(Aktiviteetti,SMALL(IF(Tavoite=$F$2,ROW(Aktiviteetti)-MIN(ROW(Aktiviteetti))+1),ROWS($B$3:B59)))&CHAR(10),\"\")","v":""},null,{"$f":"IFERROR(INDEX(Aktiviteetti,SMALL(IF(Tavoite=$H$2,ROW(Aktiviteetti)-MIN(ROW(Aktiviteetti))+1),ROWS($B$3:B59)))&CHAR(10),\"\")","v":""}]
[null,{"$f":"IFERROR(INDEX(Aktiviteetti,SMALL(IF(Tavoite=$B$2,ROW(Aktiviteetti)-MIN(ROW(Aktiviteetti))+1),ROWS($B$3:B60)))&\" \"&CHAR(10)&(INDEX(Tulos,SMALL(IF(Tavoite=$B$2,ROW(Tulos)-MIN(ROW(Tulos))+1),ROWS($B$3:B60))))&CHAR(10),\"\")","v":""},null,{"$f":"IFERROR(INDEX(Aktiviteetti,SMALL(IF(Tavoite=$D$2,ROW(Aktiviteetti)-MIN(ROW(Aktiviteetti))+1),ROWS($B$3:B60)))&CHAR(10),\"\")","v":""},null,{"$f":"IFERROR(INDEX(Aktiviteetti,SMALL(IF(Tavoite=$F$2,ROW(Aktiviteetti)-MIN(ROW(Aktiviteetti))+1),ROWS($B$3:B60)))&CHAR(10),\"\")","v":""},null,{"$f":"IFERROR(INDEX(Aktiviteetti,SMALL(IF(Tavoite=$H$2,ROW(Aktiviteetti)-MIN(ROW(Aktiviteetti))+1),ROWS($B$3:B60)))&CHAR(10),\"\")","v":""}]
[null,{"$f":"IFERROR(INDEX(Aktiviteetti,SMALL(IF(Tavoite=$B$2,ROW(Aktiviteetti)-MIN(ROW(Aktiviteetti))+1),ROWS($B$3:B61)))&\" \"&CHAR(10)&(INDEX(Tulos,SMALL(IF(Tavoite=$B$2,ROW(Tulos)-MIN(ROW(Tulos))+1),ROWS($B$3:B61))))&CHAR(10),\"\")","v":""},null,{"$f":"IFERROR(INDEX(Aktiviteetti,SMALL(IF(Tavoite=$D$2,ROW(Aktiviteetti)-MIN(ROW(Aktiviteetti))+1),ROWS($B$3:B61)))&CHAR(10),\"\")","v":""},null,{"$f":"IFERROR(INDEX(Aktiviteetti,SMALL(IF(Tavoite=$F$2,ROW(Aktiviteetti)-MIN(ROW(Aktiviteetti))+1),ROWS($B$3:B61)))&CHAR(10),\"\")","v":""},null,{"$f":"IFERROR(INDEX(Aktiviteetti,SMALL(IF(Tavoite=$H$2,ROW(Aktiviteetti)-MIN(ROW(Aktiviteetti))+1),ROWS($B$3:B61)))&CHAR(10),\"\")","v":""}]
[null,{"$f":"IFERROR(INDEX(Aktiviteetti,SMALL(IF(Tavoite=$B$2,ROW(Aktiviteetti)-MIN(ROW(Aktiviteetti))+1),ROWS($B$3:B62)))&\" \"&CHAR(10)&(INDEX(Tulos,SMALL(IF(Tavoite=$B$2,ROW(Tulos)-MIN(ROW(Tulos))+1),ROWS($B$3:B62))))&CHAR(10),\"\")","v":""},null,{"$f":"IFERROR(INDEX(Aktiviteetti,SMALL(IF(Tavoite=$D$2,ROW(Aktiviteetti)-MIN(ROW(Aktiviteetti))+1),ROWS($B$3:B62)))&CHAR(10),\"\")","v":""},null,{"$f":"IFERROR(INDEX(Aktiviteetti,SMALL(IF(Tavoite=$F$2,ROW(Aktiviteetti)-MIN(ROW(Aktiviteetti))+1),ROWS($B$3:B62)))&CHAR(10),\"\")","v":""},null,{"$f":"IFERROR(INDEX(Aktiviteetti,SMALL(IF(Tavoite=$H$2,ROW(Aktiviteetti)-MIN(ROW(Aktiviteetti))+1),ROWS($B$3:B62)))&CHAR(10),\"\")","v":""}]
[null,{"$f":"IFERROR(INDEX(Aktiviteetti,SMALL(IF(Tavoite=$B$2,ROW(Aktiviteetti)-MIN(ROW(Aktiviteetti))+1),ROWS($B$3:B63)))&\" \"&CHAR(10)&(INDEX(Tulos,SMALL(IF(Tavoite=$B$2,ROW(Tulos)-MIN(ROW(Tulos))+1),ROWS($B$3:B63))))&CHAR(10),\"\")","v":""},null,{"$f":"IFERROR(INDEX(Aktiviteetti,SMALL(IF(Tavoite=$D$2,ROW(Aktiviteetti)-MIN(ROW(Aktiviteetti))+1),ROWS($B$3:B63)))&CHAR(10),\"\")","v":""},null,{"$f":"IFERROR(INDEX(Aktiviteetti,SMALL(IF(Tavoite=$F$2,ROW(Aktiviteetti)-MIN(ROW(Aktiviteetti))+1),ROWS($B$3:B63)))&CHAR(10),\"\")","v":""},null,{"$f":"IFERROR(INDEX(Aktiviteetti,SMALL(IF(Tavoite=$H$2,ROW(Aktiviteetti)-MIN(ROW(Aktiviteetti))+1),ROWS($B$3:B63)))&CHAR(10),\"\")","v":""}]
[null,{"$f":"IFERROR(INDEX(Aktiviteetti,SMALL(IF(Tavoite=$B$2,ROW(Aktiviteetti)-MIN(ROW(Aktiviteetti))+1),ROWS($B$3:B64)))&\" \"&CHAR(10)&(INDEX(Tulos,SMALL(IF(Tavoite=$B$2,ROW(Tulos)-MIN(ROW(Tulos))+1),ROWS($B$3:B64))))&CHAR(10),\"\")","v":""},null,{"$f":"IFERROR(INDEX(Aktiviteetti,SMALL(IF(Tavoite=$D$2,ROW(Aktiviteetti)-MIN(ROW(Aktiviteetti))+1),ROWS($B$3:B64)))&CHAR(10),\"\")","v":""},null,{"$f":"IFERROR(INDEX(Aktiviteetti,SMALL(IF(Tavoite=$F$2,ROW(Aktiviteetti)-MIN(ROW(Aktiviteetti))+1),ROWS($B$3:B64)))&CHAR(10),\"\")","v":""},null,{"$f":"IFERROR(INDEX(Aktiviteetti,SMALL(IF(Tavoite=$H$2,ROW(Aktiviteetti)-MIN(ROW(Aktiviteetti))+1),ROWS($B$3:B64)))&CHAR(10),\"\")","v":""}]
[null,{"$f":"IFERROR(INDEX(Aktiviteetti,SMALL(IF(Tavoite=$B$2,ROW(Aktiviteetti)-MIN(ROW(Aktiviteetti))+1),ROWS($B$3:B65)))&\" \"&CHAR(10)&(INDEX(Tulos,SMALL(IF(Tavoite=$B$2,ROW(Tulos)-MIN(ROW(Tulos))+1),ROWS($B$3:B65))))&CHAR(10),\"\")","v":""},null,{"$f":"IFERROR(INDEX(Aktiviteetti,SMALL(IF(Tavoite=$D$2,ROW(Aktiviteetti)-MIN(ROW(Aktiviteetti))+1),ROWS($B$3:B65)))&CHAR(10),\"\")","v":""},null,{"$f":"IFERROR(INDEX(Aktiviteetti,SMALL(IF(Tavoite=$F$2,ROW(Aktiviteetti)-MIN(ROW(Aktiviteetti))+1),ROWS($B$3:B65)))&CHAR(10),\"\")","v":""},null,{"$f":"IFERROR(INDEX(Aktiviteetti,SMALL(IF(Tavoite=$H$2,ROW(Aktiviteetti)-MIN(ROW(Aktiviteetti))+1),ROWS($B$3:B65)))&CHAR(10),\"\")","v":""}]
[null,{"$f":"IFERROR(INDEX(Aktiviteetti,SMALL(IF(Tavoite=$B$2,ROW(Aktiviteetti)-MIN(ROW(Aktiviteetti))+1),ROWS($B$3:B66)))&\" \"&CHAR(10)&(INDEX(Tulos,SMALL(IF(Tavoite=$B$2,ROW(Tulos)-MIN(ROW(Tulos))+1),ROWS($B$3:B66))))&CHAR(10),\"\")","v":""},null,{"$f":"IFERROR(INDEX(Aktiviteetti,SMALL(IF(Tavoite=$D$2,ROW(Aktiviteetti)-MIN(ROW(Aktiviteetti))+1),ROWS($B$3:B66)))&CHAR(10),\"\")","v":""},null,{"$f":"IFERROR(INDEX(Aktiviteetti,SMALL(IF(Tavoite=$F$2,ROW(Aktiviteetti)-MIN(ROW(Aktiviteetti))+1),ROWS($B$3:B66)))&CHAR(10),\"\")","v":""},null,{"$f":"IFERROR(INDEX(Aktiviteetti,SMALL(IF(Tavoite=$H$2,ROW(Aktiviteetti)-MIN(ROW(Aktiviteetti))+1),ROWS($B$3:B66)))&CHAR(10),\"\")","v":""}]
[null,{"$f":"IFERROR(INDEX(Aktiviteetti,SMALL(IF(Tavoite=$B$2,ROW(Aktiviteetti)-MIN(ROW(Aktiviteetti))+1),ROWS($B$3:B67)))&\" \"&CHAR(10)&(INDEX(Tulos,SMALL(IF(Tavoite=$B$2,ROW(Tulos)-MIN(ROW(Tulos))+1),ROWS($B$3:B67))))&CHAR(10),\"\")","v":""},null,{"$f":"IFERROR(INDEX(Aktiviteetti,SMALL(IF(Tavoite=$D$2,ROW(Aktiviteetti)-MIN(ROW(Aktiviteetti))+1),ROWS($B$3:B67)))&CHAR(10),\"\")","v":""},null,{"$f":"IFERROR(INDEX(Aktiviteetti,SMALL(IF(Tavoite=$F$2,ROW(Aktiviteetti)-MIN(ROW(Aktiviteetti))+1),ROWS($B$3:B67)))&CHAR(10),\"\")","v":""},null,{"$f":"IFERROR(INDEX(Aktiviteetti,SMALL(IF(Tavoite=$H$2,ROW(Aktiviteetti)-MIN(ROW(Aktiviteetti))+1),ROWS($B$3:B67)))&CHAR(10),\"\")","v":""}]
[null,{"$f":"IFERROR(INDEX(Aktiviteetti,SMALL(IF(Tavoite=$B$2,ROW(Aktiviteetti)-MIN(ROW(Aktiviteetti))+1),ROWS($B$3:B68)))&\" \"&CHAR(10)&(INDEX(Tulos,SMALL(IF(Tavoite=$B$2,ROW(Tulos)-MIN(ROW(Tulos))+1),ROWS($B$3:B68))))&CHAR(10),\"\")","v":""},null,{"$f":"IFERROR(INDEX(Aktiviteetti,SMALL(IF(Tavoite=$D$2,ROW(Aktiviteetti)-MIN(ROW(Aktiviteetti))+1),ROWS($B$3:B68)))&CHAR(10),\"\")","v":""},null,{"$f":"IFERROR(INDEX(Aktiviteetti,SMALL(IF(Tavoite=$F$2,ROW(Aktiviteetti)-MIN(ROW(Aktiviteetti))+1),ROWS($B$3:B68)))&CHAR(10),\"\")","v":""},null,{"$f":"IFERROR(INDEX(Aktiviteetti,SMALL(IF(Tavoite=$H$2,ROW(Aktiviteetti)-MIN(ROW(Aktiviteetti))+1),ROWS($B$3:B68)))&CHAR(10),\"\")","v":""}]
[null,{"$f":"IFERROR(INDEX(Aktiviteetti,SMALL(IF(Tavoite=$B$2,ROW(Aktiviteetti)-MIN(ROW(Aktiviteetti))+1),ROWS($B$3:B69)))&\" \"&CHAR(10)&(INDEX(Tulos,SMALL(IF(Tavoite=$B$2,ROW(Tulos)-MIN(ROW(Tulos))+1),ROWS($B$3:B69))))&CHAR(10),\"\")","v":""},null,{"$f":"IFERROR(INDEX(Aktiviteetti,SMALL(IF(Tavoite=$D$2,ROW(Aktiviteetti)-MIN(ROW(Aktiviteetti))+1),ROWS($B$3:B69)))&CHAR(10),\"\")","v":""},null,{"$f":"IFERROR(INDEX(Aktiviteetti,SMALL(IF(Tavoite=$F$2,ROW(Aktiviteetti)-MIN(ROW(Aktiviteetti))+1),ROWS($B$3:B69)))&CHAR(10),\"\")","v":""},null,{"$f":"IFERROR(INDEX(Aktiviteetti,SMALL(IF(Tavoite=$H$2,ROW(Aktiviteetti)-MIN(ROW(Aktiviteetti))+1),ROWS($B$3:B69)))&CHAR(10),\"\")","v":""}]
[null,{"$f":"IFERROR(INDEX(Aktiviteetti,SMALL(IF(Tavoite=$B$2,ROW(Aktiviteetti)-MIN(ROW(Aktiviteetti))+1),ROWS($B$3:B70)))&\" \"&CHAR(10)&(INDEX(Tulos,SMALL(IF(Tavoite=$B$2,ROW(Tulos)-MIN(ROW(Tulos))+1),ROWS($B$3:B70))))&CHAR(10),\"\")","v":""},null,{"$f":"IFERROR(INDEX(Aktiviteetti,SMALL(IF(Tavoite=$D$2,ROW(Aktiviteetti)-MIN(ROW(Aktiviteetti))+1),ROWS($B$3:B70)))&CHAR(10),\"\")","v":""},null,{"$f":"IFERROR(INDEX(Aktiviteetti,SMALL(IF(Tavoite=$F$2,ROW(Aktiviteetti)-MIN(ROW(Aktiviteetti))+1),ROWS($B$3:B70)))&CHAR(10),\"\")","v":""},null,{"$f":"IFERROR(INDEX(Aktiviteetti,SMALL(IF(Tavoite=$H$2,ROW(Aktiviteetti)-MIN(ROW(Aktiviteetti))+1),ROWS($B$3:B70)))&CHAR(10),\"\")","v":""}]
[null,{"$f":"IFERROR(INDEX(Aktiviteetti,SMALL(IF(Tavoite=$B$2,ROW(Aktiviteetti)-MIN(ROW(Aktiviteetti))+1),ROWS($B$3:B71)))&\" \"&CHAR(10)&(INDEX(Tulos,SMALL(IF(Tavoite=$B$2,ROW(Tulos)-MIN(ROW(Tulos))+1),ROWS($B$3:B71))))&CHAR(10),\"\")","v":""},null,{"$f":"IFERROR(INDEX(Aktiviteetti,SMALL(IF(Tavoite=$D$2,ROW(Aktiviteetti)-MIN(ROW(Aktiviteetti))+1),ROWS($B$3:B71)))&CHAR(10),\"\")","v":""},null,{"$f":"IFERROR(INDEX(Aktiviteetti,SMALL(IF(Tavoite=$F$2,ROW(Aktiviteetti)-MIN(ROW(Aktiviteetti))+1),ROWS($B$3:B71)))&CHAR(10),\"\")","v":""},null,{"$f":"IFERROR(INDEX(Aktiviteetti,SMALL(IF(Tavoite=$H$2,ROW(Aktiviteetti)-MIN(ROW(Aktiviteetti))+1),ROWS($B$3:B71)))&CHAR(10),\"\")","v":""}]
[null,{"$f":"IFERROR(INDEX(Aktiviteetti,SMALL(IF(Tavoite=$B$2,ROW(Aktiviteetti)-MIN(ROW(Aktiviteetti))+1),ROWS($B$3:B72)))&\" \"&CHAR(10)&(INDEX(Tulos,SMALL(IF(Tavoite=$B$2,ROW(Tulos)-MIN(ROW(Tulos))+1),ROWS($B$3:B72))))&CHAR(10),\"\")","v":""},null,{"$f":"IFERROR(INDEX(Aktiviteetti,SMALL(IF(Tavoite=$D$2,ROW(Aktiviteetti)-MIN(ROW(Aktiviteetti))+1),ROWS($B$3:B72)))&CHAR(10),\"\")","v":""},null,{"$f":"IFERROR(INDEX(Aktiviteetti,SMALL(IF(Tavoite=$F$2,ROW(Aktiviteetti)-MIN(ROW(Aktiviteetti))+1),ROWS($B$3:B72)))&CHAR(10),\"\")","v":""},null,{"$f":"IFERROR(INDEX(Aktiviteetti,SMALL(IF(Tavoite=$H$2,ROW(Aktiviteetti)-MIN(ROW(Aktiviteetti))+1),ROWS($B$3:B72)))&CHAR(10),\"\")","v":""}]
[null,{"$f":"IFERROR(INDEX(Aktiviteetti,SMALL(IF(Tavoite=$B$2,ROW(Aktiviteetti)-MIN(ROW(Aktiviteetti))+1),ROWS($B$3:B73)))&\" \"&CHAR(10)&(INDEX(Tulos,SMALL(IF(Tavoite=$B$2,ROW(Tulos)-MIN(ROW(Tulos))+1),ROWS($B$3:B73))))&CHAR(10),\"\")","v":""},null,{"$f":"IFERROR(INDEX(Aktiviteetti,SMALL(IF(Tavoite=$D$2,ROW(Aktiviteetti)-MIN(ROW(Aktiviteetti))+1),ROWS($B$3:B73)))&CHAR(10),\"\")","v":""},null,{"$f":"IFERROR(INDEX(Aktiviteetti,SMALL(IF(Tavoite=$F$2,ROW(Aktiviteetti)-MIN(ROW(Aktiviteetti))+1),ROWS($B$3:B73)))&CHAR(10),\"\")","v":""},null,{"$f":"IFERROR(INDEX(Aktiviteetti,SMALL(IF(Tavoite=$H$2,ROW(Aktiviteetti)-MIN(ROW(Aktiviteetti))+1),ROWS($B$3:B73)))&CHAR(10),\"\")","v":""}]
[null,{"$f":"IFERROR(INDEX(Aktiviteetti,SMALL(IF(Tavoite=$B$2,ROW(Aktiviteetti)-MIN(ROW(Aktiviteetti))+1),ROWS($B$3:B74)))&\" \"&CHAR(10)&(INDEX(Tulos,SMALL(IF(Tavoite=$B$2,ROW(Tulos)-MIN(ROW(Tulos))+1),ROWS($B$3:B74))))&CHAR(10),\"\")","v":""},null,{"$f":"IFERROR(INDEX(Aktiviteetti,SMALL(IF(Tavoite=$D$2,ROW(Aktiviteetti)-MIN(ROW(Aktiviteetti))+1),ROWS($B$3:B74)))&CHAR(10),\"\")","v":""},null,{"$f":"IFERROR(INDEX(Aktiviteetti,SMALL(IF(Tavoite=$F$2,ROW(Aktiviteetti)-MIN(ROW(Aktiviteetti))+1),ROWS($B$3:B74)))&CHAR(10),\"\")","v":""},null,{"$f":"IFERROR(INDEX(Aktiviteetti,SMALL(IF(Tavoite=$H$2,ROW(Aktiviteetti)-MIN(ROW(Aktiviteetti))+1),ROWS($B$3:B74)))&CHAR(10),\"\")","v":""}]
[null,{"$f":"IFERROR(INDEX(Aktiviteetti,SMALL(IF(Tavoite=$B$2,ROW(Aktiviteetti)-MIN(ROW(Aktiviteetti))+1),ROWS($B$3:B75)))&\" \"&CHAR(10)&(INDEX(Tulos,SMALL(IF(Tavoite=$B$2,ROW(Tulos)-MIN(ROW(Tulos))+1),ROWS($B$3:B75))))&CHAR(10),\"\")","v":""},null,{"$f":"IFERROR(INDEX(Aktiviteetti,SMALL(IF(Tavoite=$D$2,ROW(Aktiviteetti)-MIN(ROW(Aktiviteetti))+1),ROWS($B$3:B75)))&CHAR(10),\"\")","v":""},null,{"$f":"IFERROR(INDEX(Aktiviteetti,SMALL(IF(Tavoite=$F$2,ROW(Aktiviteetti)-MIN(ROW(Aktiviteetti))+1),ROWS($B$3:B75)))&CHAR(10),\"\")","v":""},null,{"$f":"IFERROR(INDEX(Aktiviteetti,SMALL(IF(Tavoite=$H$2,ROW(Aktiviteetti)-MIN(ROW(Aktiviteetti))+1),ROWS($B$3:B75)))&CHAR(10),\"\")","v":""}]
[null,{"$f":"IFERROR(INDEX(Aktiviteetti,SMALL(IF(Tavoite=$B$2,ROW(Aktiviteetti)-MIN(ROW(Aktiviteetti))+1),ROWS($B$3:B76)))&\" \"&CHAR(10)&(INDEX(Tulos,SMALL(IF(Tavoite=$B$2,ROW(Tulos)-MIN(ROW(Tulos))+1),ROWS($B$3:B76))))&CHAR(10),\"\")","v":""},null,{"$f":"IFERROR(INDEX(Aktiviteetti,SMALL(IF(Tavoite=$D$2,ROW(Aktiviteetti)-MIN(ROW(Aktiviteetti))+1),ROWS($B$3:B76)))&CHAR(10),\"\")","v":""},null,{"$f":"IFERROR(INDEX(Aktiviteetti,SMALL(IF(Tavoite=$F$2,ROW(Aktiviteetti)-MIN(ROW(Aktiviteetti))+1),ROWS($B$3:B76)))&CHAR(10),\"\")","v":""},null,{"$f":"IFERROR(INDEX(Aktiviteetti,SMALL(IF(Tavoite=$H$2,ROW(Aktiviteetti)-MIN(ROW(Aktiviteetti))+1),ROWS($B$3:B76)))&CHAR(10),\"\")","v":""}]
[null,{"$f":"IFERROR(INDEX(Aktiviteetti,SMALL(IF(Tavoite=$B$2,ROW(Aktiviteetti)-MIN(ROW(Aktiviteetti))+1),ROWS($B$3:B77)))&\" \"&CHAR(10)&(INDEX(Tulos,SMALL(IF(Tavoite=$B$2,ROW(Tulos)-MIN(ROW(Tulos))+1),ROWS($B$3:B77))))&CHAR(10),\"\")","v":""},null,{"$f":"IFERROR(INDEX(Aktiviteetti,SMALL(IF(Tavoite=$D$2,ROW(Aktiviteetti)-MIN(ROW(Aktiviteetti))+1),ROWS($B$3:B77)))&CHAR(10),\"\")","v":""},null,{"$f":"IFERROR(INDEX(Aktiviteetti,SMALL(IF(Tavoite=$F$2,ROW(Aktiviteetti)-MIN(ROW(Aktiviteetti))+1),ROWS($B$3:B77)))&CHAR(10),\"\")","v":""},null,{"$f":"IFERROR(INDEX(Aktiviteetti,SMALL(IF(Tavoite=$H$2,ROW(Aktiviteetti)-MIN(ROW(Aktiviteetti))+1),ROWS($B$3:B77)))&CHAR(10),\"\")","v":""}]
[null,{"$f":"IFERROR(INDEX(Aktiviteetti,SMALL(IF(Tavoite=$B$2,ROW(Aktiviteetti)-MIN(ROW(Aktiviteetti))+1),ROWS($B$3:B78)))&\" \"&CHAR(10)&(INDEX(Tulos,SMALL(IF(Tavoite=$B$2,ROW(Tulos)-MIN(ROW(Tulos))+1),ROWS($B$3:B78))))&CHAR(10),\"\")","v":""},null,{"$f":"IFERROR(INDEX(Aktiviteetti,SMALL(IF(Tavoite=$D$2,ROW(Aktiviteetti)-MIN(ROW(Aktiviteetti))+1),ROWS($B$3:B78)))&CHAR(10),\"\")","v":""},null,{"$f":"IFERROR(INDEX(Aktiviteetti,SMALL(IF(Tavoite=$F$2,ROW(Aktiviteetti)-MIN(ROW(Aktiviteetti))+1),ROWS($B$3:B78)))&CHAR(10),\"\")","v":""},null,{"$f":"IFERROR(INDEX(Aktiviteetti,SMALL(IF(Tavoite=$H$2,ROW(Aktiviteetti)-MIN(ROW(Aktiviteetti))+1),ROWS($B$3:B78)))&CHAR(10),\"\")","v":""}]
[null,{"$f":"IFERROR(INDEX(Aktiviteetti,SMALL(IF(Tavoite=$B$2,ROW(Aktiviteetti)-MIN(ROW(Aktiviteetti))+1),ROWS($B$3:B79)))&\" \"&CHAR(10)&(INDEX(Tulos,SMALL(IF(Tavoite=$B$2,ROW(Tulos)-MIN(ROW(Tulos))+1),ROWS($B$3:B79))))&CHAR(10),\"\")","v":""},null,{"$f":"IFERROR(INDEX(Aktiviteetti,SMALL(IF(Tavoite=$D$2,ROW(Aktiviteetti)-MIN(ROW(Aktiviteetti))+1),ROWS($B$3:B79)))&CHAR(10),\"\")","v":""},null,{"$f":"IFERROR(INDEX(Aktiviteetti,SMALL(IF(Tavoite=$F$2,ROW(Aktiviteetti)-MIN(ROW(Aktiviteetti))+1),ROWS($B$3:B79)))&CHAR(10),\"\")","v":""},null,{"$f":"IFERROR(INDEX(Aktiviteetti,SMALL(IF(Tavoite=$H$2,ROW(Aktiviteetti)-MIN(ROW(Aktiviteetti))+1),ROWS($B$3:B79)))&CHAR(10),\"\")","v":""}]
[null,{"$f":"IFERROR(INDEX(Aktiviteetti,SMALL(IF(Tavoite=$B$2,ROW(Aktiviteetti)-MIN(ROW(Aktiviteetti))+1),ROWS($B$3:B80)))&\" \"&CHAR(10)&(INDEX(Tulos,SMALL(IF(Tavoite=$B$2,ROW(Tulos)-MIN(ROW(Tulos))+1),ROWS($B$3:B80))))&CHAR(10),\"\")","v":""},null,{"$f":"IFERROR(INDEX(Aktiviteetti,SMALL(IF(Tavoite=$D$2,ROW(Aktiviteetti)-MIN(ROW(Aktiviteetti))+1),ROWS($B$3:B80)))&CHAR(10),\"\")","v":""},null,{"$f":"IFERROR(INDEX(Aktiviteetti,SMALL(IF(Tavoite=$F$2,ROW(Aktiviteetti)-MIN(ROW(Aktiviteetti))+1),ROWS($B$3:B80)))&CHAR(10),\"\")","v":""},null,{"$f":"IFERROR(INDEX(Aktiviteetti,SMALL(IF(Tavoite=$H$2,ROW(Aktiviteetti)-MIN(ROW(Aktiviteetti))+1),ROWS($B$3:B80)))&CHAR(10),\"\")","v":""}]
[null,{"$f":"IFERROR(INDEX(Aktiviteetti,SMALL(IF(Tavoite=$B$2,ROW(Aktiviteetti)-MIN(ROW(Aktiviteetti))+1),ROWS($B$3:B81)))&\" \"&CHAR(10)&(INDEX(Tulos,SMALL(IF(Tavoite=$B$2,ROW(Tulos)-MIN(ROW(Tulos))+1),ROWS($B$3:B81))))&CHAR(10),\"\")","v":""},null,{"$f":"IFERROR(INDEX(Aktiviteetti,SMALL(IF(Tavoite=$D$2,ROW(Aktiviteetti)-MIN(ROW(Aktiviteetti))+1),ROWS($B$3:B81)))&CHAR(10),\"\")","v":""},null,{"$f":"IFERROR(INDEX(Aktiviteetti,SMALL(IF(Tavoite=$F$2,ROW(Aktiviteetti)-MIN(ROW(Aktiviteetti))+1),ROWS($B$3:B81)))&CHAR(10),\"\")","v":""},null,{"$f":"IFERROR(INDEX(Aktiviteetti,SMALL(IF(Tavoite=$H$2,ROW(Aktiviteetti)-MIN(ROW(Aktiviteetti))+1),ROWS($B$3:B81)))&CHAR(10),\"\")","v":""}]
[null,{"$f":"IFERROR(INDEX(Aktiviteetti,SMALL(IF(Tavoite=$B$2,ROW(Aktiviteetti)-MIN(ROW(Aktiviteetti))+1),ROWS($B$3:B82)))&\" \"&CHAR(10)&(INDEX(Tulos,SMALL(IF(Tavoite=$B$2,ROW(Tulos)-MIN(ROW(Tulos))+1),ROWS($B$3:B82))))&CHAR(10),\"\")","v":""},null,{"$f":"IFERROR(INDEX(Aktiviteetti,SMALL(IF(Tavoite=$D$2,ROW(Aktiviteetti)-MIN(ROW(Aktiviteetti))+1),ROWS($B$3:B82)))&CHAR(10),\"\")","v":""},null,{"$f":"IFERROR(INDEX(Aktiviteetti,SMALL(IF(Tavoite=$F$2,ROW(Aktiviteetti)-MIN(ROW(Aktiviteetti))+1),ROWS($B$3:B82)))&CHAR(10),\"\")","v":""},null,{"$f":"IFERROR(INDEX(Aktiviteetti,SMALL(IF(Tavoite=$H$2,ROW(Aktiviteetti)-MIN(ROW(Aktiviteetti))+1),ROWS($B$3:B82)))&CHAR(10),\"\")","v":""}]
[null,{"$f":"IFERROR(INDEX(Aktiviteetti,SMALL(IF(Tavoite=$B$2,ROW(Aktiviteetti)-MIN(ROW(Aktiviteetti))+1),ROWS($B$3:B83)))&\" \"&CHAR(10)&(INDEX(Tulos,SMALL(IF(Tavoite=$B$2,ROW(Tulos)-MIN(ROW(Tulos))+1),ROWS($B$3:B83))))&CHAR(10),\"\")","v":""},null,{"$f":"IFERROR(INDEX(Aktiviteetti,SMALL(IF(Tavoite=$D$2,ROW(Aktiviteetti)-MIN(ROW(Aktiviteetti))+1),ROWS($B$3:B83)))&CHAR(10),\"\")","v":""},null,{"$f":"IFERROR(INDEX(Aktiviteetti,SMALL(IF(Tavoite=$F$2,ROW(Aktiviteetti)-MIN(ROW(Aktiviteetti))+1),ROWS($B$3:B83)))&CHAR(10),\"\")","v":""},null,{"$f":"IFERROR(INDEX(Aktiviteetti,SMALL(IF(Tavoite=$H$2,ROW(Aktiviteetti)-MIN(ROW(Aktiviteetti))+1),ROWS($B$3:B83)))&CHAR(10),\"\")","v":""}]
[null,{"$f":"IFERROR(INDEX(Aktiviteetti,SMALL(IF(Tavoite=$B$2,ROW(Aktiviteetti)-MIN(ROW(Aktiviteetti))+1),ROWS($B$3:B84)))&\" \"&CHAR(10)&(INDEX(Tulos,SMALL(IF(Tavoite=$B$2,ROW(Tulos)-MIN(ROW(Tulos))+1),ROWS($B$3:B84))))&CHAR(10),\"\")","v":""},null,{"$f":"IFERROR(INDEX(Aktiviteetti,SMALL(IF(Tavoite=$D$2,ROW(Aktiviteetti)-MIN(ROW(Aktiviteetti))+1),ROWS($B$3:B84)))&CHAR(10),\"\")","v":""},null,{"$f":"IFERROR(INDEX(Aktiviteetti,SMALL(IF(Tavoite=$F$2,ROW(Aktiviteetti)-MIN(ROW(Aktiviteetti))+1),ROWS($B$3:B84)))&CHAR(10),\"\")","v":""},null,{"$f":"IFERROR(INDEX(Aktiviteetti,SMALL(IF(Tavoite=$H$2,ROW(Aktiviteetti)-MIN(ROW(Aktiviteetti))+1),ROWS($B$3:B84)))&CHAR(10),\"\")","v":""}]
[null,{"$f":"IFERROR(INDEX(Aktiviteetti,SMALL(IF(Tavoite=$B$2,ROW(Aktiviteetti)-MIN(ROW(Aktiviteetti))+1),ROWS($B$3:B85)))&\" \"&CHAR(10)&(INDEX(Tulos,SMALL(IF(Tavoite=$B$2,ROW(Tulos)-MIN(ROW(Tulos))+1),ROWS($B$3:B85))))&CHAR(10),\"\")","v":""},null,{"$f":"IFERROR(INDEX(Aktiviteetti,SMALL(IF(Tavoite=$D$2,ROW(Aktiviteetti)-MIN(ROW(Aktiviteetti))+1),ROWS($B$3:B85)))&CHAR(10),\"\")","v":""},null,{"$f":"IFERROR(INDEX(Aktiviteetti,SMALL(IF(Tavoite=$F$2,ROW(Aktiviteetti)-MIN(ROW(Aktiviteetti))+1),ROWS($B$3:B85)))&CHAR(10),\"\")","v":""},null,{"$f":"IFERROR(INDEX(Aktiviteetti,SMALL(IF(Tavoite=$H$2,ROW(Aktiviteetti)-MIN(ROW(Aktiviteetti))+1),ROWS($B$3:B85)))&CHAR(10),\"\")","v":""}]
[null,{"$f":"IFERROR(INDEX(Aktiviteetti,SMALL(IF(Tavoite=$B$2,ROW(Aktiviteetti)-MIN(ROW(Aktiviteetti))+1),ROWS($B$3:B86)))&\" \"&CHAR(10)&(INDEX(Tulos,SMALL(IF(Tavoite=$B$2,ROW(Tulos)-MIN(ROW(Tulos))+1),ROWS($B$3:B86))))&CHAR(10),\"\")","v":""},null,{"$f":"IFERROR(INDEX(Aktiviteetti,SMALL(IF(Tavoite=$D$2,ROW(Aktiviteetti)-MIN(ROW(Aktiviteetti))+1),ROWS($B$3:B86)))&CHAR(10),\"\")","v":""},null,{"$f":"IFERROR(INDEX(Aktiviteetti,SMALL(IF(Tavoite=$F$2,ROW(Aktiviteetti)-MIN(ROW(Aktiviteetti))+1),ROWS($B$3:B86)))&CHAR(10),\"\")","v":""},null,{"$f":"IFERROR(INDEX(Aktiviteetti,SMALL(IF(Tavoite=$H$2,ROW(Aktiviteetti)-MIN(ROW(Aktiviteetti))+1),ROWS($B$3:B86)))&CHAR(10),\"\")","v":""}]
[null,{"$f":"IFERROR(INDEX(Aktiviteetti,SMALL(IF(Tavoite=$B$2,ROW(Aktiviteetti)-MIN(ROW(Aktiviteetti))+1),ROWS($B$3:B87)))&\" \"&CHAR(10)&(INDEX(Tulos,SMALL(IF(Tavoite=$B$2,ROW(Tulos)-MIN(ROW(Tulos))+1),ROWS($B$3:B87))))&CHAR(10),\"\")","v":""},null,{"$f":"IFERROR(INDEX(Aktiviteetti,SMALL(IF(Tavoite=$D$2,ROW(Aktiviteetti)-MIN(ROW(Aktiviteetti))+1),ROWS($B$3:B87)))&CHAR(10),\"\")","v":""},null,{"$f":"IFERROR(INDEX(Aktiviteetti,SMALL(IF(Tavoite=$F$2,ROW(Aktiviteetti)-MIN(ROW(Aktiviteetti))+1),ROWS($B$3:B87)))&CHAR(10),\"\")","v":""},null,{"$f":"IFERROR(INDEX(Aktiviteetti,SMALL(IF(Tavoite=$H$2,ROW(Aktiviteetti)-MIN(ROW(Aktiviteetti))+1),ROWS($B$3:B87)))&CHAR(10),\"\")","v":""}]
[null,{"$f":"IFERROR(INDEX(Aktiviteetti,SMALL(IF(Tavoite=$B$2,ROW(Aktiviteetti)-MIN(ROW(Aktiviteetti))+1),ROWS($B$3:B88)))&\" \"&CHAR(10)&(INDEX(Tulos,SMALL(IF(Tavoite=$B$2,ROW(Tulos)-MIN(ROW(Tulos))+1),ROWS($B$3:B88))))&CHAR(10),\"\")","v":""},null,{"$f":"IFERROR(INDEX(Aktiviteetti,SMALL(IF(Tavoite=$D$2,ROW(Aktiviteetti)-MIN(ROW(Aktiviteetti))+1),ROWS($B$3:B88)))&CHAR(10),\"\")","v":""},null,{"$f":"IFERROR(INDEX(Aktiviteetti,SMALL(IF(Tavoite=$F$2,ROW(Aktiviteetti)-MIN(ROW(Aktiviteetti))+1),ROWS($B$3:B88)))&CHAR(10),\"\")","v":""},null,{"$f":"IFERROR(INDEX(Aktiviteetti,SMALL(IF(Tavoite=$H$2,ROW(Aktiviteetti)-MIN(ROW(Aktiviteetti))+1),ROWS($B$3:B88)))&CHAR(10),\"\")","v":""}]
[null,{"$f":"IFERROR(INDEX(Aktiviteetti,SMALL(IF(Tavoite=$B$2,ROW(Aktiviteetti)-MIN(ROW(Aktiviteetti))+1),ROWS($B$3:B89)))&\" \"&CHAR(10)&(INDEX(Tulos,SMALL(IF(Tavoite=$B$2,ROW(Tulos)-MIN(ROW(Tulos))+1),ROWS($B$3:B89))))&CHAR(10),\"\")","v":""},null,{"$f":"IFERROR(INDEX(Aktiviteetti,SMALL(IF(Tavoite=$D$2,ROW(Aktiviteetti)-MIN(ROW(Aktiviteetti))+1),ROWS($B$3:B89)))&CHAR(10),\"\")","v":""},null,{"$f":"IFERROR(INDEX(Aktiviteetti,SMALL(IF(Tavoite=$F$2,ROW(Aktiviteetti)-MIN(ROW(Aktiviteetti))+1),ROWS($B$3:B89)))&CHAR(10),\"\")","v":""},null,{"$f":"IFERROR(INDEX(Aktiviteetti,SMALL(IF(Tavoite=$H$2,ROW(Aktiviteetti)-MIN(ROW(Aktiviteetti))+1),ROWS($B$3:B89)))&CHAR(10),\"\")","v":""}]
[null,{"$f":"IFERROR(INDEX(Aktiviteetti,SMALL(IF(Tavoite=$B$2,ROW(Aktiviteetti)-MIN(ROW(Aktiviteetti))+1),ROWS($B$3:B90)))&\" \"&CHAR(10)&(INDEX(Tulos,SMALL(IF(Tavoite=$B$2,ROW(Tulos)-MIN(ROW(Tulos))+1),ROWS($B$3:B90))))&CHAR(10),\"\")","v":""},null,{"$f":"IFERROR(INDEX(Aktiviteetti,SMALL(IF(Tavoite=$D$2,ROW(Aktiviteetti)-MIN(ROW(Aktiviteetti))+1),ROWS($B$3:B90)))&CHAR(10),\"\")","v":""},null,{"$f":"IFERROR(INDEX(Aktiviteetti,SMALL(IF(Tavoite=$F$2,ROW(Aktiviteetti)-MIN(ROW(Aktiviteetti))+1),ROWS($B$3:B90)))&CHAR(10),\"\")","v":""},null,{"$f":"IFERROR(INDEX(Aktiviteetti,SMALL(IF(Tavoite=$H$2,ROW(Aktiviteetti)-MIN(ROW(Aktiviteetti))+1),ROWS($B$3:B90)))&CHAR(10),\"\")","v":""}]
[null,{"$f":"IFERROR(INDEX(Aktiviteetti,SMALL(IF(Tavoite=$B$2,ROW(Aktiviteetti)-MIN(ROW(Aktiviteetti))+1),ROWS($B$3:B91)))&\" \"&CHAR(10)&(INDEX(Tulos,SMALL(IF(Tavoite=$B$2,ROW(Tulos)-MIN(ROW(Tulos))+1),ROWS($B$3:B91))))&CHAR(10),\"\")","v":""},null,{"$f":"IFERROR(INDEX(Aktiviteetti,SMALL(IF(Tavoite=$D$2,ROW(Aktiviteetti)-MIN(ROW(Aktiviteetti))+1),ROWS($B$3:B91)))&CHAR(10),\"\")","v":""},null,{"$f":"IFERROR(INDEX(Aktiviteetti,SMALL(IF(Tavoite=$F$2,ROW(Aktiviteetti)-MIN(ROW(Aktiviteetti))+1),ROWS($B$3:B91)))&CHAR(10),\"\")","v":""},null,{"$f":"IFERROR(INDEX(Aktiviteetti,SMALL(IF(Tavoite=$H$2,ROW(Aktiviteetti)-MIN(ROW(Aktiviteetti))+1),ROWS($B$3:B91)))&CHAR(10),\"\")","v":""}]
[null,{"$f":"IFERROR(INDEX(Aktiviteetti,SMALL(IF(Tavoite=$B$2,ROW(Aktiviteetti)-MIN(ROW(Aktiviteetti))+1),ROWS($B$3:B92)))&\" \"&CHAR(10)&(INDEX(Tulos,SMALL(IF(Tavoite=$B$2,ROW(Tulos)-MIN(ROW(Tulos))+1),ROWS($B$3:B92))))&CHAR(10),\"\")","v":""},null,{"$f":"IFERROR(INDEX(Aktiviteetti,SMALL(IF(Tavoite=$D$2,ROW(Aktiviteetti)-MIN(ROW(Aktiviteetti))+1),ROWS($B$3:B92)))&CHAR(10),\"\")","v":""},null,{"$f":"IFERROR(INDEX(Aktiviteetti,SMALL(IF(Tavoite=$F$2,ROW(Aktiviteetti)-MIN(ROW(Aktiviteetti))+1),ROWS($B$3:B92)))&CHAR(10),\"\")","v":""},null,{"$f":"IFERROR(INDEX(Aktiviteetti,SMALL(IF(Tavoite=$H$2,ROW(Aktiviteetti)-MIN(ROW(Aktiviteetti))+1),ROWS($B$3:B92)))&CHAR(10),\"\")","v":""}]
[null,{"$f":"IFERROR(INDEX(Aktiviteetti,SMALL(IF(Tavoite=$B$2,ROW(Aktiviteetti)-MIN(ROW(Aktiviteetti))+1),ROWS($B$3:B93)))&\" \"&CHAR(10)&(INDEX(Tulos,SMALL(IF(Tavoite=$B$2,ROW(Tulos)-MIN(ROW(Tulos))+1),ROWS($B$3:B93))))&CHAR(10),\"\")","v":""},null,{"$f":"IFERROR(INDEX(Aktiviteetti,SMALL(IF(Tavoite=$D$2,ROW(Aktiviteetti)-MIN(ROW(Aktiviteetti))+1),ROWS($B$3:B93)))&CHAR(10),\"\")","v":""},null,{"$f":"IFERROR(INDEX(Aktiviteetti,SMALL(IF(Tavoite=$F$2,ROW(Aktiviteetti)-MIN(ROW(Aktiviteetti))+1),ROWS($B$3:B93)))&CHAR(10),\"\")","v":""},null,{"$f":"IFERROR(INDEX(Aktiviteetti,SMALL(IF(Tavoite=$H$2,ROW(Aktiviteetti)-MIN(ROW(Aktiviteetti))+1),ROWS($B$3:B93)))&CHAR(10),\"\")","v":""}]
[null,{"$f":"IFERROR(INDEX(Aktiviteetti,SMALL(IF(Tavoite=$B$2,ROW(Aktiviteetti)-MIN(ROW(Aktiviteetti))+1),ROWS($B$3:B94)))&\" \"&CHAR(10)&(INDEX(Tulos,SMALL(IF(Tavoite=$B$2,ROW(Tulos)-MIN(ROW(Tulos))+1),ROWS($B$3:B94))))&CHAR(10),\"\")","v":""},null,{"$f":"IFERROR(INDEX(Aktiviteetti,SMALL(IF(Tavoite=$D$2,ROW(Aktiviteetti)-MIN(ROW(Aktiviteetti))+1),ROWS($B$3:B94)))&CHAR(10),\"\")","v":""},null,{"$f":"IFERROR(INDEX(Aktiviteetti,SMALL(IF(Tavoite=$F$2,ROW(Aktiviteetti)-MIN(ROW(Aktiviteetti))+1),ROWS($B$3:B94)))&CHAR(10),\"\")","v":""},null,{"$f":"IFERROR(INDEX(Aktiviteetti,SMALL(IF(Tavoite=$H$2,ROW(Aktiviteetti)-MIN(ROW(Aktiviteetti))+1),ROWS($B$3:B94)))&CHAR(10),\"\")","v":""}]
[null,{"$f":"IFERROR(INDEX(Aktiviteetti,SMALL(IF(Tavoite=$B$2,ROW(Aktiviteetti)-MIN(ROW(Aktiviteetti))+1),ROWS($B$3:B95)))&\" \"&CHAR(10)&(INDEX(Tulos,SMALL(IF(Tavoite=$B$2,ROW(Tulos)-MIN(ROW(Tulos))+1),ROWS($B$3:B95))))&CHAR(10),\"\")","v":""},null,{"$f":"IFERROR(INDEX(Aktiviteetti,SMALL(IF(Tavoite=$D$2,ROW(Aktiviteetti)-MIN(ROW(Aktiviteetti))+1),ROWS($B$3:B95)))&CHAR(10),\"\")","v":""},null,{"$f":"IFERROR(INDEX(Aktiviteetti,SMALL(IF(Tavoite=$F$2,ROW(Aktiviteetti)-MIN(ROW(Aktiviteetti))+1),ROWS($B$3:B95)))&CHAR(10),\"\")","v":""},null,{"$f":"IFERROR(INDEX(Aktiviteetti,SMALL(IF(Tavoite=$H$2,ROW(Aktiviteetti)-MIN(ROW(Aktiviteetti))+1),ROWS($B$3:B95)))&CHAR(10),\"\")","v":""}]
[null,{"$f":"IFERROR(INDEX(Aktiviteetti,SMALL(IF(Tavoite=$B$2,ROW(Aktiviteetti)-MIN(ROW(Aktiviteetti))+1),ROWS($B$3:B96)))&\" \"&CHAR(10)&(INDEX(Tulos,SMALL(IF(Tavoite=$B$2,ROW(Tulos)-MIN(ROW(Tulos))+1),ROWS($B$3:B96))))&CHAR(10),\"\")","v":""},null,{"$f":"IFERROR(INDEX(Aktiviteetti,SMALL(IF(Tavoite=$D$2,ROW(Aktiviteetti)-MIN(ROW(Aktiviteetti))+1),ROWS($B$3:B96)))&CHAR(10),\"\")","v":""},null,{"$f":"IFERROR(INDEX(Aktiviteetti,SMALL(IF(Tavoite=$F$2,ROW(Aktiviteetti)-MIN(ROW(Aktiviteetti))+1),ROWS($B$3:B96)))&CHAR(10),\"\")","v":""},null,{"$f":"IFERROR(INDEX(Aktiviteetti,SMALL(IF(Tavoite=$H$2,ROW(Aktiviteetti)-MIN(ROW(Aktiviteetti))+1),ROWS($B$3:B96)))&CHAR(10),\"\")","v":""}]
[null,{"$f":"IFERROR(INDEX(Aktiviteetti,SMALL(IF(Tavoite=$B$2,ROW(Aktiviteetti)-MIN(ROW(Aktiviteetti))+1),ROWS($B$3:B97)))&\" \"&CHAR(10)&(INDEX(Tulos,SMALL(IF(Tavoite=$B$2,ROW(Tulos)-MIN(ROW(Tulos))+1),ROWS($B$3:B97))))&CHAR(10),\"\")","v":""},null,{"$f":"IFERROR(INDEX(Aktiviteetti,SMALL(IF(Tavoite=$D$2,ROW(Aktiviteetti)-MIN(ROW(Aktiviteetti))+1),ROWS($B$3:B97)))&CHAR(10),\"\")","v":""},null,{"$f":"IFERROR(INDEX(Aktiviteetti,SMALL(IF(Tavoite=$F$2,ROW(Aktiviteetti)-MIN(ROW(Aktiviteetti))+1),ROWS($B$3:B97)))&CHAR(10),\"\")","v":""},null,{"$f":"IFERROR(INDEX(Aktiviteetti,SMALL(IF(Tavoite=$H$2,ROW(Aktiviteetti)-MIN(ROW(Aktiviteetti))+1),ROWS($B$3:B97)))&CHAR(10),\"\")","v":""}]
[null,{"$f":"IFERROR(INDEX(Aktiviteetti,SMALL(IF(Tavoite=$B$2,ROW(Aktiviteetti)-MIN(ROW(Aktiviteetti))+1),ROWS($B$3:B98)))&\" \"&CHAR(10)&(INDEX(Tulos,SMALL(IF(Tavoite=$B$2,ROW(Tulos)-MIN(ROW(Tulos))+1),ROWS($B$3:B98))))&CHAR(10),\"\")","v":""},null,{"$f":"IFERROR(INDEX(Aktiviteetti,SMALL(IF(Tavoite=$D$2,ROW(Aktiviteetti)-MIN(ROW(Aktiviteetti))+1),ROWS($B$3:B98)))&CHAR(10),\"\")","v":""},null,{"$f":"IFERROR(INDEX(Aktiviteetti,SMALL(IF(Tavoite=$F$2,ROW(Aktiviteetti)-MIN(ROW(Aktiviteetti))+1),ROWS($B$3:B98)))&CHAR(10),\"\")","v":""},null,{"$f":"IFERROR(INDEX(Aktiviteetti,SMALL(IF(Tavoite=$H$2,ROW(Aktiviteetti)-MIN(ROW(Aktiviteetti))+1),ROWS($B$3:B98)))&CHAR(10),\"\")","v":""}]
[null,{"$f":"IFERROR(INDEX(Aktiviteetti,SMALL(IF(Tavoite=$B$2,ROW(Aktiviteetti)-MIN(ROW(Aktiviteetti))+1),ROWS($B$3:B99)))&\" \"&CHAR(10)&(INDEX(Tulos,SMALL(IF(Tavoite=$B$2,ROW(Tulos)-MIN(ROW(Tulos))+1),ROWS($B$3:B99))))&CHAR(10),\"\")","v":""},null,{"$f":"IFERROR(INDEX(Aktiviteetti,SMALL(IF(Tavoite=$D$2,ROW(Aktiviteetti)-MIN(ROW(Aktiviteetti))+1),ROWS($B$3:B99)))&CHAR(10),\"\")","v":""},null,{"$f":"IFERROR(INDEX(Aktiviteetti,SMALL(IF(Tavoite=$F$2,ROW(Aktiviteetti)-MIN(ROW(Aktiviteetti))+1),ROWS($B$3:B99)))&CHAR(10),\"\")","v":""},null,{"$f":"IFERROR(INDEX(Aktiviteetti,SMALL(IF(Tavoite=$H$2,ROW(Aktiviteetti)-MIN(ROW(Aktiviteetti))+1),ROWS($B$3:B99)))&CHAR(10),\"\")","v":""}]
[null,{"$f":"IFERROR(INDEX(Aktiviteetti,SMALL(IF(Tavoite=$B$2,ROW(Aktiviteetti)-MIN(ROW(Aktiviteetti))+1),ROWS($B$3:B100)))&\" \"&CHAR(10)&(INDEX(Tulos,SMALL(IF(Tavoite=$B$2,ROW(Tulos)-MIN(ROW(Tulos))+1),ROWS($B$3:B100))))&CHAR(10),\"\")","v":""},null,{"$f":"IFERROR(INDEX(Aktiviteetti,SMALL(IF(Tavoite=$D$2,ROW(Aktiviteetti)-MIN(ROW(Aktiviteetti))+1),ROWS($B$3:B100)))&CHAR(10),\"\")","v":""},null,{"$f":"IFERROR(INDEX(Aktiviteetti,SMALL(IF(Tavoite=$F$2,ROW(Aktiviteetti)-MIN(ROW(Aktiviteetti))+1),ROWS($B$3:B100)))&CHAR(10),\"\")","v":""},null,{"$f":"IFERROR(INDEX(Aktiviteetti,SMALL(IF(Tavoite=$H$2,ROW(Aktiviteetti)-MIN(ROW(Aktiviteetti))+1),ROWS($B$3:B100)))&CHAR(10),\"\")","v":""}]

{"sheet":"Tietoja","index":2,"n_rows":6,"n_cols":1,"rows_kept":6}
["Tietoja tästä työkirjasta"]
["Ohjeet näytönlukuohjelmia varten"]
["Tässä työkirjassa on kolme laskentataulukkoa. \n\nToteutussuunnitelman tiedot\nAgile-toteutussuunnitelma\nTietoja\n\nJokaisen laskentataulukon ohjeet ovat sarakkeessa A alkaen solusta A1. Ne on kirjoitettu piilotekstinä. Jokainen vaihe opastaa sinua kyseisen rivin tiedoissa. Jokainen seuraava vaihe jatkuu solussa A2, A3 jne., ellei erikseen ole muuta mainittu. Ohjetekstissä voi lukea esimerkiksi ”jatka soluun A6” seuraavaa vaihetta varten. \n\nPiilotekstiä ei tulosteta.\n\nVoit poistaa nämä ohjeet mistä tahansa laskentataulukosta poistamalla sarakkeen A.\n"]
["Tietoja tästä työkirjasta"]
["Kirjoita välitavoitteen tiedot Toteutussuunnitelman tiedot -laskentataulukkoon.  Käytä lajitteluperusteena prioriteettia, jonka jälkeen tulee välitavoite. Valmis-, Nykyinen-, Lyhyt aikaväli- ja Tuleva-näkymä tallennetaan siten laskevan prioriteetin mukaisessa järjestyksessä siten, että korkeimman prioriteetit kohteet on lueteltu ensimmäisinä. Agile-toteutussuunnitelma-laskentataulukon toteutussuunnitelma päivitetään automaattisesti.\n"]
["Tämä on tämän laskentataulukon viimeinen ohje."]